{"text_format":"1","workbook":"xlsx","n_sheets":2,"sheets":["Diputados","Escaños"],"not_rendered":{"charts":2,"images":1,"macros":1,"external_links":0,"defined_names":1,"comments":0,"pivot_tables":0},"unopened":[],"bounds":{"document_bytes":16777216,"sheet_cells":100000,"rows_first":2000,"rows_last":500,"rows_between":2000,"halvings":0,"cell_chars":16384,"cell_head_chars":4096},"cells_cut":0,"cells_raw":0,"read":"whole","date_system":"1900"}

{"sheet":"Diputados","index":0,"n_rows":18,"n_cols":6,"rows_kept":18,"cut":false,"hidden":false,"merged":[]}
["#","Partidos","2019","2023",null,{"$f":"$D$1&\"        \"&$C$1&\"       Congreso de los Diputados de España       \"&$C$1&\"        \"&$D$1","v":"2023        2019       Congreso de los Diputados de España       2019        2023"}]
[1,"PSOE",120,121]
[2,"U. Podemos - SUMAR",35,26]
[3,"ERC",13,7]
[4,"EH Bildu",5,6]
[5,"EAJ-PNV",6,5]
[6,"Plural - JxCAT",12,7]
[7,"Ciudadanos",10,0]
[8,"Mixto",9,8]
[9,"Vox",52,33]
[10,"Partido Popular",88,137]
[null,"TOTAL",{"$f":"SUM(C$2:C$11)","v":350},{"$f":"SUM(D$2:D$11)","v":350}]
[null,null,null,"á"]
[null,null,null,"Recuento a 12 de diciembre de 2023"]
[]
["Blog:","#ExcelPedroWave"]
["YouTube:","Excel Pedro Wave"]
["Copyright:","Creative Commons 3.0"]

{"sheet":"Escaños","index":1,"n_rows":383,"n_cols":17,"rows_kept":383,"cut":false,"hidden":false,"merged":[]}
[null,"Elecciones generales","2023",null,null,null,null,null,null,null,null,null,"Clic para mostrar u ocultar los números de escaño →","#","Diputados","x","y"]
[null,null,null,null,null,null,null,null,null,null,null,null,null,1,{"$f":"IF($C$16=0,\"\",IFERROR(INDEX(TablaPartidos[Grupos Parlamentarios],MATCH(N2-1,--TablaPartidos[[#All],[0]],0)),O1))","v":"PSOE"},-16,-20]
[null,{"$f":"\"Congreso \nde los \nDiputados \nde España \n\" & $C$1 & \" \n\" & IF(--$C$1=2019,\"\",\"\")","v":"Congreso \nde los \nDiputados \nde España \n2023 \n"},null,null,null,null,null,null,null,null,null,null,null,2,{"$f":"IF($C$16=0,\"\",IFERROR(INDEX(TablaPartidos[Grupos Parlamentarios],MATCH(N3-1,--TablaPartidos[[#All],[0]],0)),O2))","v":"PSOE"},-18,-20]
[null,null,null,null,null,null,null,null,null,null,null,null,null,3,{"$f":"IF($C$16=0,\"\",IFERROR(INDEX(TablaPartidos[Grupos Parlamentarios],MATCH(N4-1,--TablaPartidos[[#All],[0]],0)),O3))","v":"PSOE"},-20,-20]
["#","Grupos Parlamentarios","Escaños","0",null,null,null,null,null,null,null,null,null,4,{"$f":"IF($C$16=0,\"\",IFERROR(INDEX(TablaPartidos[Grupos Parlamentarios],MATCH(N5-1,--TablaPartidos[[#All],[0]],0)),O4))","v":"PSOE"},-16,-18.7]
[1,"PSOE",{"$f":"IF(Diputados!C$1=C$1,Diputados!C2,Diputados!D2)","v":121},{"$f":"C6","v":121},null,null,null,null,null,null,null,null,null,5,{"$f":"IF($C$16=0,\"\",IFERROR(INDEX(TablaPartidos[Grupos Parlamentarios],MATCH(N6-1,--TablaPartidos[[#All],[0]],0)),O5))","v":"PSOE"},-18,-18.7]
[2,{"$f":"IF(--$C$1=2019,\"Unidas Podemos\",\"SUMAR\")","v":"SUMAR"},{"$f":"IF(Diputados!C$1=C$1,Diputados!C3,Diputados!D3)","v":26},{"$f":"IF(C8=0,0,MAX($D$6:D6)+IF(C7=0,C6,C7))","v":147},null,null,null,null,null,null,null,null,null,6,{"$f":"IF($C$16=0,\"\",IFERROR(INDEX(TablaPartidos[Grupos Parlamentarios],MATCH(N7-1,--TablaPartidos[[#All],[0]],0)),O6))","v":"PSOE"},-20,-18.7]
[3,{"$f":"IF(--$C$1=2019,\"ERC\",\"Grupo Republicano\")","v":"Grupo Republicano"},{"$f":"IF(Diputados!C$1=C$1,Diputados!C4,Diputados!D4)","v":7},{"$f":"IF(C9=0,0,MAX($D$6:D7)+IF(C8=0,C7,C8))","v":154},null,null,null,null,null,null,null,null,null,7,{"$f":"IF($C$16=0,\"\",IFERROR(INDEX(TablaPartidos[Grupos Parlamentarios],MATCH(N8-1,--TablaPartidos[[#All],[0]],0)),O7))","v":"PSOE"},-16,-17.399999999999999]
[4,"EH Bildu",{"$f":"IF(Diputados!C$1=C$1,Diputados!C5,Diputados!D5)","v":6},{"$f":"IF(C10=0,0,MAX($D$6:D8)+IF(C9=0,C8,C9))","v":160},null,null,null,null,null,null,null,null,null,8,{"$f":"IF($C$16=0,\"\",IFERROR(INDEX(TablaPartidos[Grupos Parlamentarios],MATCH(N9-1,--TablaPartidos[[#All],[0]],0)),O8))","v":"PSOE"},-18,-17.399999999999999]
[5,"Grupo Vasco (EAJ-PNV)",{"$f":"IF(Diputados!C$1=C$1,Diputados!C6,Diputados!D6)","v":5},{"$f":"IF(C11=0,0,MAX($D$6:D9)+IF(C10=0,C9,C10))","v":165},null,null,null,null,null,null,null,null,null,9,{"$f":"IF($C$16=0,\"\",IFERROR(INDEX(TablaPartidos[Grupos Parlamentarios],MATCH(N10-1,--TablaPartidos[[#All],[0]],0)),O9))","v":"PSOE"},-20,-17.399999999999999]
[6,{"$f":"IF(--$C$1=2019,\"Plural\",\"Junts per Catalunya\")","v":"Junts per Catalunya"},{"$f":"IF(Diputados!C$1=C$1,Diputados!C7,Diputados!D7)","v":7},{"$f":"IF(C12=0,0,MAX($D$6:D10)+IF(C11=0,C10,C11))","v":0},null,null,null,null,null,null,null,null,null,10,{"$f":"IF($C$16=0,\"\",IFERROR(INDEX(TablaPartidos[Grupos Parlamentarios],MATCH(N11-1,--TablaPartidos[[#All],[0]],0)),O10))","v":"PSOE"},-16,-16.100000000000001]
[7,{"$f":"IF(--$C$1=2019,\"Ciudadanos\",\" \")","v":" "},{"$f":"IF(Diputados!C$1=C$1,Diputados!C8,Diputados!D8)","v":0},{"$f":"IF(C13=0,0,MAX($D$6:D11)+IF(C12=0,C11,C12))","v":172},null,null,null,null,null,null,null,null,null,11,{"$f":"IF($C$16=0,\"\",IFERROR(INDEX(TablaPartidos[Grupos Parlamentarios],MATCH(N12-1,--TablaPartidos[[#All],[0]],0)),O11))","v":"PSOE"},-18,-16.100000000000001]
[8,"Grupo Mixto",{"$f":"IF(Diputados!C$1=C$1,Diputados!C9,Diputados!D9)","v":8},{"$f":"IF(C14=0,0,MAX($D$6:D12)+IF(C13=0,C12,C13))","v":180},null,null,null,null,null,null,null,null,null,12,{"$f":"IF($C$16=0,\"\",IFERROR(INDEX(TablaPartidos[Grupos Parlamentarios],MATCH(N13-1,--TablaPartidos[[#All],[0]],0)),O12))","v":"PSOE"},-20,-16.100000000000001]
[9,"Vox",{"$f":"IF(Diputados!C$1=C$1,Diputados!C10,Diputados!D10)","v":33},{"$f":"IF(C15=0,0,MAX($D$6:D13)+IF(C14=0,C13,C14))","v":213},null,null,null,null,null,null,null,null,null,13,{"$f":"IF($C$16=0,\"\",IFERROR(INDEX(TablaPartidos[Grupos Parlamentarios],MATCH(N14-1,--TablaPartidos[[#All],[0]],0)),O13))","v":"PSOE"},-18,-14.8]
[10,"Partido Popular",{"$f":"IF(Diputados!C$1=C$1,Diputados!C11,Diputados!D11)","v":137},{"$f":"IF(C16=0,0,MAX($D$6:D14)+IF(C15=0,C14,C15))","v":350},null,null,null,null,null,null,null,null,null,14,{"$f":"IF($C$16=0,\"\",IFERROR(INDEX(TablaPartidos[Grupos Parlamentarios],MATCH(N15-1,--TablaPartidos[[#All],[0]],0)),O14))","v":"PSOE"},-20,-14.8]
[null,"TOTAL",{"$f":"SUM(C$6:C$15)","v":350},{"$f":"MAX(D$6:D$15)","v":350},null,null,null,null,null,null,null,null,null,15,{"$f":"IF($C$16=0,\"\",IFERROR(INDEX(TablaPartidos[Grupos Parlamentarios],MATCH(N16-1,--TablaPartidos[[#All],[0]],0)),O15))","v":"PSOE"},-16,-13.5]
[null,null,{"$f":"IF(--$C$1=2023,\"á\",\"\")","v":"á"},null,null,null,null,null,null,null,null,null,null,16,{"$f":"IF($C$16=0,\"\",IFERROR(INDEX(TablaPartidos[Grupos Parlamentarios],MATCH(N17-1,--TablaPartidos[[#All],[0]],0)),O16))","v":"PSOE"},-18,-13.5]
[null,null,{"$f":"IF(--$C$1=2023,Diputados!$D$14,\"\")","v":"Recuento a 12 de diciembre de 2023"},null,null,null,null,null,null,null,null,null,null,17,{"$f":"IF($C$16=0,\"\",IFERROR(INDEX(TablaPartidos[Grupos Parlamentarios],MATCH(N18-1,--TablaPartidos[[#All],[0]],0)),O17))","v":"PSOE"},-20,-13.5]
[null,null,null,null,null,null,null,null,null,null,null,null,null,18,{"$f":"IF($C$16=0,\"\",IFERROR(INDEX(TablaPartidos[Grupos Parlamentarios],MATCH(N19-1,--TablaPartidos[[#All],[0]],0)),O18))","v":"PSOE"},-16,-12.2]
["Blog:","#ExcelPedroWave",null,null,null,null,null,null,null,null,null,null,null,19,{"$f":"IF($C$16=0,\"\",IFERROR(INDEX(TablaPartidos[Grupos Parlamentarios],MATCH(N20-1,--TablaPartidos[[#All],[0]],0)),O19))","v":"PSOE"},-18,-12.2]
["YouTube:","Excel Pedro Wave",null,null,null,null,null,null,null,null,null,null,null,20,{"$f":"IF($C$16=0,\"\",IFERROR(INDEX(TablaPartidos[Grupos Parlamentarios],MATCH(N21-1,--TablaPartidos[[#All],[0]],0)),O20))","v":"PSOE"},-20,-12.2]
["Copyright:","Creative Commons 3.0",null,null,null,null,null,null,null,null,null,null,null,21,{"$f":"IF($C$16=0,\"\",IFERROR(INDEX(TablaPartidos[Grupos Parlamentarios],MATCH(N22-1,--TablaPartidos[[#All],[0]],0)),O21))","v":"PSOE"},-8,-9.8000000000000007]
[null,null,null,null,null,null,null,null,null,null,null,null,null,22,{"$f":"IF($C$16=0,\"\",IFERROR(INDEX(TablaPartidos[Grupos Parlamentarios],MATCH(N23-1,--TablaPartidos[[#All],[0]],0)),O22))","v":"PSOE"},-10,-9.8000000000000007]
[null,null,null,null,null,null,null,null,null,null,null,null,null,23,{"$f":"IF($C$16=0,\"\",IFERROR(INDEX(TablaPartidos[Grupos Parlamentarios],MATCH(N24-1,--TablaPartidos[[#All],[0]],0)),O23))","v":"PSOE"},-12,-9.8000000000000007]
[null,null,null,null,null,null,null,null,null,null,null,null,null,24,{"$f":"IF($C$16=0,\"\",IFERROR(INDEX(TablaPartidos[Grupos Parlamentarios],MATCH(N25-1,--TablaPartidos[[#All],[0]],0)),O24))","v":"PSOE"},-14,-9.8000000000000007]
[null,null,null,null,null,null,null,null,null,null,null,null,null,25,{"$f":"IF($C$16=0,\"\",IFERROR(INDEX(TablaPartidos[Grupos Parlamentarios],MATCH(N26-1,--TablaPartidos[[#All],[0]],0)),O25))","v":"PSOE"},-20,-9.1]
["#","Partidos","2019","2023",null,null,null,null,null,null,null,null,null,26,{"$f":"IF($C$16=0,\"\",IFERROR(INDEX(TablaPartidos[Grupos Parlamentarios],MATCH(N27-1,--TablaPartidos[[#All],[0]],0)),O26))","v":"PSOE"},-8,-8.5]
[351,{"$f":"IF(--$C$1=2019,TablaPuestos[[#This Row],[2019]],TablaPuestos[[#This Row],[2023]])&\"\"","v":"PSOE"},"PSOE","PSOE",null,null,null,null,null,null,null,null,null,27,{"$f":"IF($C$16=0,\"\",IFERROR(INDEX(TablaPartidos[Grupos Parlamentarios],MATCH(N28-1,--TablaPartidos[[#All],[0]],0)),O27))","v":"PSOE"},-10,-8.5]
[352,{"$f":"IF(--$C$1=2019,TablaPuestos[[#This Row],[2019]],TablaPuestos[[#This Row],[2023]])&\"\"","v":"Partido Popular"},"Vox","Partido Popular",null,null,null,null,null,null,null,null,null,28,{"$f":"IF($C$16=0,\"\",IFERROR(INDEX(TablaPartidos[Grupos Parlamentarios],MATCH(N29-1,--TablaPartidos[[#All],[0]],0)),O28))","v":"PSOE"},-12,-8.5]
[353,{"$f":"IF(--$C$1=2019,TablaPuestos[[#This Row],[2019]],TablaPuestos[[#This Row],[2023]])&\"\"","v":"Partido Popular"},"Partido Popular","Partido Popular",null,null,null,null,null,null,null,null,null,29,{"$f":"IF($C$16=0,\"\",IFERROR(INDEX(TablaPartidos[Grupos Parlamentarios],MATCH(N30-1,--TablaPartidos[[#All],[0]],0)),O29))","v":"PSOE"},-14,-8.5]
[354,{"$f":"IF(--$C$1=2019,TablaPuestos[[#This Row],[2019]],TablaPuestos[[#This Row],[2023]])&\"\"","v":"PSOE"},"PSOE","PSOE",null,null,null,null,null,null,null,null,null,30,{"$f":"IF($C$16=0,\"\",IFERROR(INDEX(TablaPartidos[Grupos Parlamentarios],MATCH(N31-1,--TablaPartidos[[#All],[0]],0)),O30))","v":"PSOE"},-16,-8.5]
[355,{"$f":"IF(--$C$1=2019,TablaPuestos[[#This Row],[2019]],TablaPuestos[[#This Row],[2023]])&\"\"","v":"SUMAR"},"Unidas Podemos","SUMAR",null,null,null,null,null,null,null,null,null,31,{"$f":"IF($C$16=0,\"\",IFERROR(INDEX(TablaPartidos[Grupos Parlamentarios],MATCH(N32-1,--TablaPartidos[[#All],[0]],0)),O31))","v":"PSOE"},-18,-8.5]
[356,{"$f":"IF(--$C$1=2019,TablaPuestos[[#This Row],[2019]],TablaPuestos[[#This Row],[2023]])&\"\"","v":"Partido Popular"},"Partido Popular","Partido Popular",null,null,null,null,null,null,null,null,null,32,{"$f":"IF($C$16=0,\"\",IFERROR(INDEX(TablaPartidos[Grupos Parlamentarios],MATCH(N33-1,--TablaPartidos[[#All],[0]],0)),O32))","v":"PSOE"},-20,-7.8]
[357,{"$f":"IF(--$C$1=2019,TablaPuestos[[#This Row],[2019]],TablaPuestos[[#This Row],[2023]])&\"\"","v":"PSOE"},"PSOE","PSOE",null,null,null,null,null,null,null,null,null,33,{"$f":"IF($C$16=0,\"\",IFERROR(INDEX(TablaPartidos[Grupos Parlamentarios],MATCH(N34-1,--TablaPartidos[[#All],[0]],0)),O33))","v":"PSOE"},-8,-7.1]
[358,{"$f":"IF(--$C$1=2019,TablaPuestos[[#This Row],[2019]],TablaPuestos[[#This Row],[2023]])&\"\"","v":"SUMAR"},"Unidas Podemos","SUMAR",null,null,null,null,null,null,null,null,null,34,{"$f":"IF($C$16=0,\"\",IFERROR(INDEX(TablaPartidos[Grupos Parlamentarios],MATCH(N35-1,--TablaPartidos[[#All],[0]],0)),O34))","v":"PSOE"},-10,-7.1]
[359,{"$f":"IF(--$C$1=2019,TablaPuestos[[#This Row],[2019]],TablaPuestos[[#This Row],[2023]])&\"\"","v":"Partido Popular"},"Unidas Podemos","Partido Popular",null,null,null,null,null,null,null,null,null,35,{"$f":"IF($C$16=0,\"\",IFERROR(INDEX(TablaPartidos[Grupos Parlamentarios],MATCH(N36-1,--TablaPartidos[[#All],[0]],0)),O35))","v":"PSOE"},-12,-7.1]
[360,{"$f":"IF(--$C$1=2019,TablaPuestos[[#This Row],[2019]],TablaPuestos[[#This Row],[2023]])&\"\"","v":"PSOE"},"PSOE","PSOE",null,null,null,null,null,null,null,null,null,36,{"$f":"IF($C$16=0,\"\",IFERROR(INDEX(TablaPartidos[Grupos Parlamentarios],MATCH(N37-1,--TablaPartidos[[#All],[0]],0)),O36))","v":"PSOE"},-14,-7.1]
[361,{"$f":"IF(--$C$1=2019,TablaPuestos[[#This Row],[2019]],TablaPuestos[[#This Row],[2023]])&\"\"","v":""},null,null,null,null,null,null,null,null,null,null,null,37,{"$f":"IF($C$16=0,\"\",IFERROR(INDEX(TablaPartidos[Grupos Parlamentarios],MATCH(N38-1,--TablaPartidos[[#All],[0]],0)),O37))","v":"PSOE"},-16,-7.1]
[362,{"$f":"IF(--$C$1=2019,TablaPuestos[[#This Row],[2019]],TablaPuestos[[#This Row],[2023]])&\"\"","v":""},"Unidas Podemos",null,null,null,null,null,null,null,null,null,null,38,{"$f":"IF($C$16=0,\"\",IFERROR(INDEX(TablaPartidos[Grupos Parlamentarios],MATCH(N39-1,--TablaPartidos[[#All],[0]],0)),O38))","v":"PSOE"},-18,-7.1]
[363,{"$f":"IF(--$C$1=2019,TablaPuestos[[#This Row],[2019]],TablaPuestos[[#This Row],[2023]])&\"\"","v":""},null,null,null,null,null,null,null,null,null,null,null,39,{"$f":"IF($C$16=0,\"\",IFERROR(INDEX(TablaPartidos[Grupos Parlamentarios],MATCH(N40-1,--TablaPartidos[[#All],[0]],0)),O39))","v":"PSOE"},-20,-6.5]
[364,{"$f":"IF(--$C$1=2019,TablaPuestos[[#This Row],[2019]],TablaPuestos[[#This Row],[2023]])&\"\"","v":"PSOE"},null,"PSOE",null,null,null,null,null,null,null,null,null,40,{"$f":"IF($C$16=0,\"\",IFERROR(INDEX(TablaPartidos[Grupos Parlamentarios],MATCH(N41-1,--TablaPartidos[[#All],[0]],0)),O40))","v":"PSOE"},-8,-5.8]
[365,{"$f":"IF(--$C$1=2019,TablaPuestos[[#This Row],[2019]],TablaPuestos[[#This Row],[2023]])&\"\"","v":""},null,null,null,null,null,null,null,null,null,null,null,41,{"$f":"IF($C$16=0,\"\",IFERROR(INDEX(TablaPartidos[Grupos Parlamentarios],MATCH(N42-1,--TablaPartidos[[#All],[0]],0)),O41))","v":"PSOE"},-10,-5.8]
[366,{"$f":"IF(--$C$1=2019,TablaPuestos[[#This Row],[2019]],TablaPuestos[[#This Row],[2023]])&\"\"","v":""},null,null,null,null,null,null,null,null,null,null,null,42,{"$f":"IF($C$16=0,\"\",IFERROR(INDEX(TablaPartidos[Grupos Parlamentarios],MATCH(N43-1,--TablaPartidos[[#All],[0]],0)),O42))","v":"PSOE"},-12,-5.8]
[367,{"$f":"IF(--$C$1=2019,TablaPuestos[[#This Row],[2019]],TablaPuestos[[#This Row],[2023]])&\"\"","v":""},"PSOE",null,null,null,null,null,null,null,null,null,null,43,{"$f":"IF($C$16=0,\"\",IFERROR(INDEX(TablaPartidos[Grupos Parlamentarios],MATCH(N44-1,--TablaPartidos[[#All],[0]],0)),O43))","v":"PSOE"},-14,-5.8]
[368,{"$f":"IF(--$C$1=2019,TablaPuestos[[#This Row],[2019]],TablaPuestos[[#This Row],[2023]])&\"\"","v":""},null,null,null,null,null,null,null,null,null,null,null,44,{"$f":"IF($C$16=0,\"\",IFERROR(INDEX(TablaPartidos[Grupos Parlamentarios],MATCH(N45-1,--TablaPartidos[[#All],[0]],0)),O44))","v":"PSOE"},-16,-5.8]
[369,{"$f":"IF(--$C$1=2019,TablaPuestos[[#This Row],[2019]],TablaPuestos[[#This Row],[2023]])&\"\"","v":"PSOE"},null,"PSOE",null,null,null,null,null,null,null,null,null,45,{"$f":"IF($C$16=0,\"\",IFERROR(INDEX(TablaPartidos[Grupos Parlamentarios],MATCH(N46-1,--TablaPartidos[[#All],[0]],0)),O45))","v":"PSOE"},-18,-5.8]
[370,{"$f":"IF(--$C$1=2019,TablaPuestos[[#This Row],[2019]],TablaPuestos[[#This Row],[2023]])&\"\"","v":""},null,null,null,null,null,null,null,null,null,null,null,46,{"$f":"IF($C$16=0,\"\",IFERROR(INDEX(TablaPartidos[Grupos Parlamentarios],MATCH(N47-1,--TablaPartidos[[#All],[0]],0)),O46))","v":"PSOE"},-20,-5.2]
[371,{"$f":"IF(--$C$1=2019,TablaPuestos[[#This Row],[2019]],TablaPuestos[[#This Row],[2023]])&\"\"","v":""},null,null,null,null,null,null,null,null,null,null,null,47,{"$f":"IF($C$16=0,\"\",IFERROR(INDEX(TablaPartidos[Grupos Parlamentarios],MATCH(N48-1,--TablaPartidos[[#All],[0]],0)),O47))","v":"PSOE"},-8,-4.5]
[372,{"$f":"IF(--$C$1=2019,TablaPuestos[[#This Row],[2019]],TablaPuestos[[#This Row],[2023]])&\"\"","v":""},null,null,null,null,null,null,null,null,null,null,null,48,{"$f":"IF($C$16=0,\"\",IFERROR(INDEX(TablaPartidos[Grupos Parlamentarios],MATCH(N49-1,--TablaPartidos[[#All],[0]],0)),O48))","v":"PSOE"},-10,-4.5]
[373,{"$f":"IF(--$C$1=2019,TablaPuestos[[#This Row],[2019]],TablaPuestos[[#This Row],[2023]])&\"\"","v":""},null,null,null,null,null,null,null,null,null,null,null,49,{"$f":"IF($C$16=0,\"\",IFERROR(INDEX(TablaPartidos[Grupos Parlamentarios],MATCH(N50-1,--TablaPartidos[[#All],[0]],0)),O49))","v":"PSOE"},-12,-4.5]
[374,{"$f":"IF(--$C$1=2019,TablaPuestos[[#This Row],[2019]],TablaPuestos[[#This Row],[2023]])&\"\"","v":""},null,null,null,null,null,null,null,null,null,null,null,50,{"$f":"IF($C$16=0,\"\",IFERROR(INDEX(TablaPartidos[Grupos Parlamentarios],MATCH(N51-1,--TablaPartidos[[#All],[0]],0)),O50))","v":"PSOE"},-14,-4.5]
[375,{"$f":"IF(--$C$1=2019,TablaPuestos[[#This Row],[2019]],TablaPuestos[[#This Row],[2023]])&\"\"","v":""},null,null,null,null,null,null,null,null,null,null,null,51,{"$f":"IF($C$16=0,\"\",IFERROR(INDEX(TablaPartidos[Grupos Parlamentarios],MATCH(N52-1,--TablaPartidos[[#All],[0]],0)),O51))","v":"PSOE"},-16,-4.5]
[376,{"$f":"IF(--$C$1=2019,TablaPuestos[[#This Row],[2019]],TablaPuestos[[#This Row],[2023]])&\"\"","v":""},null,null,null,null,null,null,null,null,null,null,null,52,{"$f":"IF($C$16=0,\"\",IFERROR(INDEX(TablaPartidos[Grupos Parlamentarios],MATCH(N53-1,--TablaPartidos[[#All],[0]],0)),O52))","v":"PSOE"},-18,-4.5]
[377,{"$f":"IF(--$C$1=2019,TablaPuestos[[#This Row],[2019]],TablaPuestos[[#This Row],[2023]])&\"\"","v":""},"Unidas Podemos",null,null,null,null,null,null,null,null,null,null,53,{"$f":"IF($C$16=0,\"\",IFERROR(INDEX(TablaPartidos[Grupos Parlamentarios],MATCH(N54-1,--TablaPartidos[[#All],[0]],0)),O53))","v":"PSOE"},-20,-3.9]
[378,{"$f":"IF(--$C$1=2019,TablaPuestos[[#This Row],[2019]],TablaPuestos[[#This Row],[2023]])&\"\"","v":""},null,null,null,null,null,null,null,null,null,null,null,54,{"$f":"IF($C$16=0,\"\",IFERROR(INDEX(TablaPartidos[Grupos Parlamentarios],MATCH(N55-1,--TablaPartidos[[#All],[0]],0)),O54))","v":"PSOE"},-8,-3.2]
[379,{"$f":"IF(--$C$1=2019,TablaPuestos[[#This Row],[2019]],TablaPuestos[[#This Row],[2023]])&\"\"","v":""},"Unidas Podemos",null,null,null,null,null,null,null,null,null,null,55,{"$f":"IF($C$16=0,\"\",IFERROR(INDEX(TablaPartidos[Grupos Parlamentarios],MATCH(N56-1,--TablaPartidos[[#All],[0]],0)),O55))","v":"PSOE"},-10,-3.2]
[380,{"$f":"IF(--$C$1=2019,TablaPuestos[[#This Row],[2019]],TablaPuestos[[#This Row],[2023]])&\"\"","v":""},"Unidas Podemos",null,null,null,null,null,null,null,null,null,null,56,{"$f":"IF($C$16=0,\"\",IFERROR(INDEX(TablaPartidos[Grupos Parlamentarios],MATCH(N57-1,--TablaPartidos[[#All],[0]],0)),O56))","v":"PSOE"},-12,-3.2]
[381,{"$f":"IF(--$C$1=2019,TablaPuestos[[#This Row],[2019]],TablaPuestos[[#This Row],[2023]])&\"\"","v":""},null,null,null,null,null,null,null,null,null,null,null,57,{"$f":"IF($C$16=0,\"\",IFERROR(INDEX(TablaPartidos[Grupos Parlamentarios],MATCH(N58-1,--TablaPartidos[[#All],[0]],0)),O57))","v":"PSOE"},-14,-3.2]
[382,{"$f":"IF(--$C$1=2019,TablaPuestos[[#This Row],[2019]],TablaPuestos[[#This Row],[2023]])&\"\"","v":""},null,null,null,null,null,null,null,null,null,null,null,58,{"$f":"IF($C$16=0,\"\",IFERROR(INDEX(TablaPartidos[Grupos Parlamentarios],MATCH(N59-1,--TablaPartidos[[#All],[0]],0)),O58))","v":"PSOE"},-20,-2.6]
[null,null,null,null,null,null,null,null,null,null,null,null,null,59,{"$f":"IF($C$16=0,\"\",IFERROR(INDEX(TablaPartidos[Grupos Parlamentarios],MATCH(N60-1,--TablaPartidos[[#All],[0]],0)),O59))","v":"PSOE"},-16,-2.4]
[null,null,null,null,null,null,null,null,null,null,null,null,null,60,{"$f":"IF($C$16=0,\"\",IFERROR(INDEX(TablaPartidos[Grupos Parlamentarios],MATCH(N61-1,--TablaPartidos[[#All],[0]],0)),O60))","v":"PSOE"},-18,-2]
[null,null,null,null,null,null,null,null,null,null,null,null,null,61,{"$f":"IF($C$16=0,\"\",IFERROR(INDEX(TablaPartidos[Grupos Parlamentarios],MATCH(N62-1,--TablaPartidos[[#All],[0]],0)),O61))","v":"PSOE"},-8,-1.9]
[null,null,null,null,null,null,null,null,null,null,null,null,null,62,{"$f":"IF($C$16=0,\"\",IFERROR(INDEX(TablaPartidos[Grupos Parlamentarios],MATCH(N63-1,--TablaPartidos[[#All],[0]],0)),O62))","v":"PSOE"},-10,-1.9]
[null,null,null,null,null,null,null,null,null,null,null,null,null,63,{"$f":"IF($C$16=0,\"\",IFERROR(INDEX(TablaPartidos[Grupos Parlamentarios],MATCH(N64-1,--TablaPartidos[[#All],[0]],0)),O63))","v":"PSOE"},-12,-1.9]
[null,null,null,null,null,null,null,null,null,null,null,null,null,64,{"$f":"IF($C$16=0,\"\",IFERROR(INDEX(TablaPartidos[Grupos Parlamentarios],MATCH(N65-1,--TablaPartidos[[#All],[0]],0)),O64))","v":"PSOE"},-14,-1.9]
[null,null,null,null,null,null,null,null,null,null,null,null,null,65,{"$f":"IF($C$16=0,\"\",IFERROR(INDEX(TablaPartidos[Grupos Parlamentarios],MATCH(N66-1,--TablaPartidos[[#All],[0]],0)),O65))","v":"PSOE"},-20,-1.3]
[null,null,null,null,null,null,null,null,null,null,null,null,null,66,{"$f":"IF($C$16=0,\"\",IFERROR(INDEX(TablaPartidos[Grupos Parlamentarios],MATCH(N67-1,--TablaPartidos[[#All],[0]],0)),O66))","v":"PSOE"},-15.9,-1.2]
[null,null,null,null,null,null,null,null,null,null,null,null,null,67,{"$f":"IF($C$16=0,\"\",IFERROR(INDEX(TablaPartidos[Grupos Parlamentarios],MATCH(N68-1,--TablaPartidos[[#All],[0]],0)),O67))","v":"PSOE"},-11.9,-0.7]
[null,null,null,null,null,null,null,null,null,null,null,null,null,68,{"$f":"IF($C$16=0,\"\",IFERROR(INDEX(TablaPartidos[Grupos Parlamentarios],MATCH(N69-1,--TablaPartidos[[#All],[0]],0)),O68))","v":"PSOE"},-13.9,-0.7]
[null,null,null,null,null,null,null,null,null,null,null,null,null,69,{"$f":"IF($C$16=0,\"\",IFERROR(INDEX(TablaPartidos[Grupos Parlamentarios],MATCH(N70-1,--TablaPartidos[[#All],[0]],0)),O69))","v":"PSOE"},-17.899999999999999,-0.7]
[null,null,null,null,null,null,null,null,null,null,null,null,null,70,{"$f":"IF($C$16=0,\"\",IFERROR(INDEX(TablaPartidos[Grupos Parlamentarios],MATCH(N71-1,--TablaPartidos[[#All],[0]],0)),O70))","v":"PSOE"},-7.5,-0.4]
[null,null,null,null,null,null,null,null,null,null,null,null,null,71,{"$f":"IF($C$16=0,\"\",IFERROR(INDEX(TablaPartidos[Grupos Parlamentarios],MATCH(N72-1,--TablaPartidos[[#All],[0]],0)),O71))","v":"PSOE"},-9.8000000000000007,-0.6]
[null,null,null,null,null,null,null,null,null,null,null,null,null,72,{"$f":"IF($C$16=0,\"\",IFERROR(INDEX(TablaPartidos[Grupos Parlamentarios],MATCH(N73-1,--TablaPartidos[[#All],[0]],0)),O72))","v":"PSOE"},-20,0]
[null,null,null,null,null,null,null,null,null,null,null,null,null,73,{"$f":"IF($C$16=0,\"\",IFERROR(INDEX(TablaPartidos[Grupos Parlamentarios],MATCH(N74-1,--TablaPartidos[[#All],[0]],0)),O73))","v":"PSOE"},-15.8,0.1]
[null,null,null,null,null,null,null,null,null,null,null,null,null,74,{"$f":"IF($C$16=0,\"\",IFERROR(INDEX(TablaPartidos[Grupos Parlamentarios],MATCH(N75-1,--TablaPartidos[[#All],[0]],0)),O74))","v":"PSOE"},-11.6,0.4]
[null,null,null,null,null,null,null,null,null,null,null,null,null,75,{"$f":"IF($C$16=0,\"\",IFERROR(INDEX(TablaPartidos[Grupos Parlamentarios],MATCH(N76-1,--TablaPartidos[[#All],[0]],0)),O75))","v":"PSOE"},-13.8,0.5]
[null,null,null,null,null,null,null,null,null,null,null,null,null,76,{"$f":"IF($C$16=0,\"\",IFERROR(INDEX(TablaPartidos[Grupos Parlamentarios],MATCH(N77-1,--TablaPartidos[[#All],[0]],0)),O76))","v":"PSOE"},-6.9,0.6]
[null,null,null,null,null,null,null,null,null,null,null,null,null,77,{"$f":"IF($C$16=0,\"\",IFERROR(INDEX(TablaPartidos[Grupos Parlamentarios],MATCH(N78-1,--TablaPartidos[[#All],[0]],0)),O77))","v":"PSOE"},-9.1999999999999993,0.6]
[null,null,null,null,null,null,null,null,null,null,null,null,null,78,{"$f":"IF($C$16=0,\"\",IFERROR(INDEX(TablaPartidos[Grupos Parlamentarios],MATCH(N79-1,--TablaPartidos[[#All],[0]],0)),O78))","v":"PSOE"},-17.7,0.6]
[null,null,null,null,null,null,null,null,null,null,null,null,null,79,{"$f":"IF($C$16=0,\"\",IFERROR(INDEX(TablaPartidos[Grupos Parlamentarios],MATCH(N80-1,--TablaPartidos[[#All],[0]],0)),O79))","v":"PSOE"},-19.899999999999999,1.2]
[null,null,null,null,null,null,null,null,null,null,null,null,null,80,{"$f":"IF($C$16=0,\"\",IFERROR(INDEX(TablaPartidos[Grupos Parlamentarios],MATCH(N81-1,--TablaPartidos[[#All],[0]],0)),O80))","v":"PSOE"},-11.3,1.5]
[null,null,null,null,null,null,null,null,null,null,null,null,null,81,{"$f":"IF($C$16=0,\"\",IFERROR(INDEX(TablaPartidos[Grupos Parlamentarios],MATCH(N82-1,--TablaPartidos[[#All],[0]],0)),O81))","v":"PSOE"},-15.5,1.4]
[null,null,null,null,null,null,null,null,null,null,null,null,null,82,{"$f":"IF($C$16=0,\"\",IFERROR(INDEX(TablaPartidos[Grupos Parlamentarios],MATCH(N83-1,--TablaPartidos[[#All],[0]],0)),O82))","v":"PSOE"},-13.6,1.6]
[null,null,null,null,null,null,null,null,null,null,null,null,null,83,{"$f":"IF($C$16=0,\"\",IFERROR(INDEX(TablaPartidos[Grupos Parlamentarios],MATCH(N84-1,--TablaPartidos[[#All],[0]],0)),O83))","v":"PSOE"},-6,1.7]
[null,null,null,null,null,null,null,null,null,null,null,null,null,84,{"$f":"IF($C$16=0,\"\",IFERROR(INDEX(TablaPartidos[Grupos Parlamentarios],MATCH(N85-1,--TablaPartidos[[#All],[0]],0)),O84))","v":"PSOE"},-8.6,1.8]
[null,null,null,null,null,null,null,null,null,null,null,null,null,85,{"$f":"IF($C$16=0,\"\",IFERROR(INDEX(TablaPartidos[Grupos Parlamentarios],MATCH(N86-1,--TablaPartidos[[#All],[0]],0)),O85))","v":"PSOE"},-17.5,1.8]
[null,null,null,null,null,null,null,null,null,null,null,null,null,86,{"$f":"IF($C$16=0,\"\",IFERROR(INDEX(TablaPartidos[Grupos Parlamentarios],MATCH(N87-1,--TablaPartidos[[#All],[0]],0)),O86))","v":"PSOE"},-10.8,2.5]
[null,null,null,null,null,null,null,null,null,null,null,null,null,87,{"$f":"IF($C$16=0,\"\",IFERROR(INDEX(TablaPartidos[Grupos Parlamentarios],MATCH(N88-1,--TablaPartidos[[#All],[0]],0)),O87))","v":"PSOE"},-19.7,2.6]
[null,null,null,null,null,null,null,null,null,null,null,null,null,88,{"$f":"IF($C$16=0,\"\",IFERROR(INDEX(TablaPartidos[Grupos Parlamentarios],MATCH(N89-1,--TablaPartidos[[#All],[0]],0)),O88))","v":"PSOE"},-7.9,2.7]
[null,null,null,null,null,null,null,null,null,null,null,null,null,89,{"$f":"IF($C$16=0,\"\",IFERROR(INDEX(TablaPartidos[Grupos Parlamentarios],MATCH(N90-1,--TablaPartidos[[#All],[0]],0)),O89))","v":"PSOE"},-13.2,2.7]
[null,null,null,null,null,null,null,null,null,null,null,null,null,90,{"$f":"IF($C$16=0,\"\",IFERROR(INDEX(TablaPartidos[Grupos Parlamentarios],MATCH(N91-1,--TablaPartidos[[#All],[0]],0)),O90))","v":"PSOE"},-15.2,3.2]
[null,null,null,null,null,null,null,null,null,null,null,null,null,91,{"$f":"IF($C$16=0,\"\",IFERROR(INDEX(TablaPartidos[Grupos Parlamentarios],MATCH(N92-1,--TablaPartidos[[#All],[0]],0)),O91))","v":"PSOE"},-10.199999999999999,3.6]
[null,null,null,null,null,null,null,null,null,null,null,null,null,92,{"$f":"IF($C$16=0,\"\",IFERROR(INDEX(TablaPartidos[Grupos Parlamentarios],MATCH(N93-1,--TablaPartidos[[#All],[0]],0)),O92))","v":"PSOE"},-7.1,3.6]
[null,null,null,null,null,null,null,null,null,null,null,null,null,93,{"$f":"IF($C$16=0,\"\",IFERROR(INDEX(TablaPartidos[Grupos Parlamentarios],MATCH(N94-1,--TablaPartidos[[#All],[0]],0)),O93))","v":"PSOE"},-12.8,3.8]
[null,null,null,null,null,null,null,null,null,null,null,null,null,94,{"$f":"IF($C$16=0,\"\",IFERROR(INDEX(TablaPartidos[Grupos Parlamentarios],MATCH(N95-1,--TablaPartidos[[#All],[0]],0)),O94))","v":"PSOE"},-19.399999999999999,4]
[null,null,null,null,null,null,null,null,null,null,null,null,null,95,{"$f":"IF($C$16=0,\"\",IFERROR(INDEX(TablaPartidos[Grupos Parlamentarios],MATCH(N96-1,--TablaPartidos[[#All],[0]],0)),O95))","v":"PSOE"},-14.8,4.3]
[null,null,null,null,null,null,null,null,null,null,null,null,null,96,{"$f":"IF($C$16=0,\"\",IFERROR(INDEX(TablaPartidos[Grupos Parlamentarios],MATCH(N97-1,--TablaPartidos[[#All],[0]],0)),O96))","v":"PSOE"},-17,4.2]
[null,null,null,null,null,null,null,null,null,null,null,null,null,97,{"$f":"IF($C$16=0,\"\",IFERROR(INDEX(TablaPartidos[Grupos Parlamentarios],MATCH(N98-1,--TablaPartidos[[#All],[0]],0)),O97))","v":"PSOE"},-9.6,4.5]
[null,null,null,null,null,null,null,null,null,null,null,null,null,98,{"$f":"IF($C$16=0,\"\",IFERROR(INDEX(TablaPartidos[Grupos Parlamentarios],MATCH(N99-1,--TablaPartidos[[#All],[0]],0)),O98))","v":"PSOE"},-12.2,4.8]
[null,null,null,null,null,null,null,null,null,null,null,null,null,99,{"$f":"IF($C$16=0,\"\",IFERROR(INDEX(TablaPartidos[Grupos Parlamentarios],MATCH(N100-1,--TablaPartidos[[#All],[0]],0)),O99))","v":"PSOE"},-8.9,5.3]
[null,null,null,null,null,null,null,null,null,null,null,null,null,100,{"$f":"IF($C$16=0,\"\",IFERROR(INDEX(TablaPartidos[Grupos Parlamentarios],MATCH(N101-1,--TablaPartidos[[#All],[0]],0)),O100))","v":"PSOE"},-14.4,5.4]
[null,null,null,null,null,null,null,null,null,null,null,null,null,101,{"$f":"IF($C$16=0,\"\",IFERROR(INDEX(TablaPartidos[Grupos Parlamentarios],MATCH(N102-1,--TablaPartidos[[#All],[0]],0)),O101))","v":"PSOE"},-16.600000000000001,5.4]
[null,null,null,null,null,null,null,null,null,null,null,null,null,102,{"$f":"IF($C$16=0,\"\",IFERROR(INDEX(TablaPartidos[Grupos Parlamentarios],MATCH(N103-1,--TablaPartidos[[#All],[0]],0)),O102))","v":"PSOE"},-18.899999999999999,5.4]
[null,null,null,null,null,null,null,null,null,null,null,null,null,103,{"$f":"IF($C$16=0,\"\",IFERROR(INDEX(TablaPartidos[Grupos Parlamentarios],MATCH(N104-1,--TablaPartidos[[#All],[0]],0)),O103))","v":"PSOE"},-11.6,5.7]
[null,null,null,null,null,null,null,null,null,null,null,null,null,104,{"$f":"IF($C$16=0,\"\",IFERROR(INDEX(TablaPartidos[Grupos Parlamentarios],MATCH(N105-1,--TablaPartidos[[#All],[0]],0)),O104))","v":"PSOE"},-8.1,6.1]
[null,null,null,null,null,null,null,null,null,null,null,null,null,105,{"$f":"IF($C$16=0,\"\",IFERROR(INDEX(TablaPartidos[Grupos Parlamentarios],MATCH(N106-1,--TablaPartidos[[#All],[0]],0)),O105))","v":"PSOE"},-13.9,6.5]
[null,null,null,null,null,null,null,null,null,null,null,null,null,106,{"$f":"IF($C$16=0,\"\",IFERROR(INDEX(TablaPartidos[Grupos Parlamentarios],MATCH(N107-1,--TablaPartidos[[#All],[0]],0)),O106))","v":"PSOE"},-10.9,6.6]
[null,null,null,null,null,null,null,null,null,null,null,null,null,107,{"$f":"IF($C$16=0,\"\",IFERROR(INDEX(TablaPartidos[Grupos Parlamentarios],MATCH(N108-1,--TablaPartidos[[#All],[0]],0)),O107))","v":"PSOE"},-16.100000000000001,6.6]
[null,null,null,null,null,null,null,null,null,null,null,null,null,108,{"$f":"IF($C$16=0,\"\",IFERROR(INDEX(TablaPartidos[Grupos Parlamentarios],MATCH(N109-1,--TablaPartidos[[#All],[0]],0)),O108))","v":"PSOE"},-18.399999999999999,6.8]
[null,null,null,null,null,null,null,null,null,null,null,null,null,109,{"$f":"IF($C$16=0,\"\",IFERROR(INDEX(TablaPartidos[Grupos Parlamentarios],MATCH(N110-1,--TablaPartidos[[#All],[0]],0)),O109))","v":"PSOE"},-10.199999999999999,7.5]
[null,null,null,null,null,null,null,null,null,null,null,null,null,110,{"$f":"IF($C$16=0,\"\",IFERROR(INDEX(TablaPartidos[Grupos Parlamentarios],MATCH(N111-1,--TablaPartidos[[#All],[0]],0)),O110))","v":"PSOE"},-15.6,7.7]
[null,null,null,null,null,null,null,null,null,null,null,null,null,111,{"$f":"IF($C$16=0,\"\",IFERROR(INDEX(TablaPartidos[Grupos Parlamentarios],MATCH(N112-1,--TablaPartidos[[#All],[0]],0)),O111))","v":"PSOE"},-13.1,7.8]
[null,null,null,null,null,null,null,null,null,null,null,null,null,112,{"$f":"IF($C$16=0,\"\",IFERROR(INDEX(TablaPartidos[Grupos Parlamentarios],MATCH(N113-1,--TablaPartidos[[#All],[0]],0)),O112))","v":"PSOE"},-17.7,8.1999999999999993]
[null,null,null,null,null,null,null,null,null,null,null,null,null,113,{"$f":"IF($C$16=0,\"\",IFERROR(INDEX(TablaPartidos[Grupos Parlamentarios],MATCH(N114-1,--TablaPartidos[[#All],[0]],0)),O113))","v":"PSOE"},-9.5,8.4]
[null,null,null,null,null,null,null,null,null,null,null,null,null,114,{"$f":"IF($C$16=0,\"\",IFERROR(INDEX(TablaPartidos[Grupos Parlamentarios],MATCH(N115-1,--TablaPartidos[[#All],[0]],0)),O114))","v":"PSOE"},-12.4,8.6999999999999993]
[null,null,null,null,null,null,null,null,null,null,null,null,null,115,{"$f":"IF($C$16=0,\"\",IFERROR(INDEX(TablaPartidos[Grupos Parlamentarios],MATCH(N116-1,--TablaPartidos[[#All],[0]],0)),O115))","v":"PSOE"},-17.100000000000001,9.4]
[null,null,null,null,null,null,null,null,null,null,null,null,null,116,{"$f":"IF($C$16=0,\"\",IFERROR(INDEX(TablaPartidos[Grupos Parlamentarios],MATCH(N117-1,--TablaPartidos[[#All],[0]],0)),O116))","v":"PSOE"},-11.7,9.6]
[null,null,null,null,null,null,null,null,null,null,null,null,null,117,{"$f":"IF($C$16=0,\"\",IFERROR(INDEX(TablaPartidos[Grupos Parlamentarios],MATCH(N118-1,--TablaPartidos[[#All],[0]],0)),O117))","v":"PSOE"},-14.4,9.6]
[null,null,null,null,null,null,null,null,null,null,null,null,null,118,{"$f":"IF($C$16=0,\"\",IFERROR(INDEX(TablaPartidos[Grupos Parlamentarios],MATCH(N119-1,--TablaPartidos[[#All],[0]],0)),O118))","v":"PSOE"},-11,10.5]
[null,null,null,null,null,null,null,null,null,null,null,null,null,119,{"$f":"IF($C$16=0,\"\",IFERROR(INDEX(TablaPartidos[Grupos Parlamentarios],MATCH(N120-1,--TablaPartidos[[#All],[0]],0)),O119))","v":"PSOE"},-13.7,10.6]
[null,null,null,null,null,null,null,null,null,null,null,null,null,120,{"$f":"IF($C$16=0,\"\",IFERROR(INDEX(TablaPartidos[Grupos Parlamentarios],MATCH(N121-1,--TablaPartidos[[#All],[0]],0)),O120))","v":"PSOE"},-16.3,10.8]
[null,null,null,null,null,null,null,null,null,null,null,null,null,121,{"$f":"IF($C$16=0,\"\",IFERROR(INDEX(TablaPartidos[Grupos Parlamentarios],MATCH(N122-1,--TablaPartidos[[#All],[0]],0)),O121))","v":"PSOE"},-13,11.4]
[null,null,null,null,null,null,null,null,null,null,null,null,null,122,{"$f":"IF($C$16=0,\"\",IFERROR(INDEX(TablaPartidos[Grupos Parlamentarios],MATCH(N123-1,--TablaPartidos[[#All],[0]],0)),O122))","v":"SUMAR"},-15.6,11.8]
[null,null,null,null,null,null,null,null,null,null,null,null,null,123,{"$f":"IF($C$16=0,\"\",IFERROR(INDEX(TablaPartidos[Grupos Parlamentarios],MATCH(N124-1,--TablaPartidos[[#All],[0]],0)),O123))","v":"SUMAR"},-12.3,12.2]
[null,null,null,null,null,null,null,null,null,null,null,null,null,124,{"$f":"IF($C$16=0,\"\",IFERROR(INDEX(TablaPartidos[Grupos Parlamentarios],MATCH(N125-1,--TablaPartidos[[#All],[0]],0)),O124))","v":"SUMAR"},-14.7,12.8]
[null,null,null,null,null,null,null,null,null,null,null,null,null,125,{"$f":"IF($C$16=0,\"\",IFERROR(INDEX(TablaPartidos[Grupos Parlamentarios],MATCH(N126-1,--TablaPartidos[[#All],[0]],0)),O125))","v":"SUMAR"},-13.8,13.8]
[null,null,null,null,null,null,null,null,null,null,null,null,null,126,{"$f":"IF($C$16=0,\"\",IFERROR(INDEX(TablaPartidos[Grupos Parlamentarios],MATCH(N127-1,--TablaPartidos[[#All],[0]],0)),O126))","v":"SUMAR"},-13,14.7]
[null,null,null,null,null,null,null,null,null,null,null,null,null,127,{"$f":"IF($C$16=0,\"\",IFERROR(INDEX(TablaPartidos[Grupos Parlamentarios],MATCH(N128-1,--TablaPartidos[[#All],[0]],0)),O127))","v":"SUMAR"},-3.5,3.4]
[null,null,null,null,null,null,null,null,null,null,null,null,null,128,{"$f":"IF($C$16=0,\"\",IFERROR(INDEX(TablaPartidos[Grupos Parlamentarios],MATCH(N129-1,--TablaPartidos[[#All],[0]],0)),O128))","v":"SUMAR"},-2.4,3.9]
[null,null,null,null,null,null,null,null,null,null,null,null,null,129,{"$f":"IF($C$16=0,\"\",IFERROR(INDEX(TablaPartidos[Grupos Parlamentarios],MATCH(N130-1,--TablaPartidos[[#All],[0]],0)),O129))","v":"SUMAR"},-1.2,4.2]
[null,null,null,null,null,null,null,null,null,null,null,null,null,130,{"$f":"IF($C$16=0,\"\",IFERROR(INDEX(TablaPartidos[Grupos Parlamentarios],MATCH(N131-1,--TablaPartidos[[#All],[0]],0)),O130))","v":"SUMAR"},0,4.3]
[null,null,null,null,null,null,null,null,null,null,null,null,null,131,{"$f":"IF($C$16=0,\"\",IFERROR(INDEX(TablaPartidos[Grupos Parlamentarios],MATCH(N132-1,--TablaPartidos[[#All],[0]],0)),O131))","v":"SUMAR"},-4.5999999999999996,5.8]
[null,null,null,null,null,null,null,null,null,null,null,null,null,132,{"$f":"IF($C$16=0,\"\",IFERROR(INDEX(TablaPartidos[Grupos Parlamentarios],MATCH(N133-1,--TablaPartidos[[#All],[0]],0)),O132))","v":"SUMAR"},-3.6,6.4]
[null,null,null,null,null,null,null,null,null,null,null,null,null,133,{"$f":"IF($C$16=0,\"\",IFERROR(INDEX(TablaPartidos[Grupos Parlamentarios],MATCH(N134-1,--TablaPartidos[[#All],[0]],0)),O133))","v":"SUMAR"},-2.5,6.9]
[null,null,null,null,null,null,null,null,null,null,null,null,null,134,{"$f":"IF($C$16=0,\"\",IFERROR(INDEX(TablaPartidos[Grupos Parlamentarios],MATCH(N135-1,--TablaPartidos[[#All],[0]],0)),O134))","v":"SUMAR"},-1.5,7.1]
[null,null,null,null,null,null,null,null,null,null,null,null,null,135,{"$f":"IF($C$16=0,\"\",IFERROR(INDEX(TablaPartidos[Grupos Parlamentarios],MATCH(N136-1,--TablaPartidos[[#All],[0]],0)),O135))","v":"SUMAR"},-0.5,7.2]
[null,null,null,null,null,null,null,null,null,null,null,null,null,136,{"$f":"IF($C$16=0,\"\",IFERROR(INDEX(TablaPartidos[Grupos Parlamentarios],MATCH(N137-1,--TablaPartidos[[#All],[0]],0)),O136))","v":"SUMAR"},-5.7,8.1999999999999993]
[null,null,null,null,null,null,null,null,null,null,null,null,null,137,{"$f":"IF($C$16=0,\"\",IFERROR(INDEX(TablaPartidos[Grupos Parlamentarios],MATCH(N138-1,--TablaPartidos[[#All],[0]],0)),O137))","v":"SUMAR"},-4.7,8.9]
[null,null,null,null,null,null,null,null,null,null,null,null,null,138,{"$f":"IF($C$16=0,\"\",IFERROR(INDEX(TablaPartidos[Grupos Parlamentarios],MATCH(N139-1,--TablaPartidos[[#All],[0]],0)),O138))","v":"SUMAR"},-3.7,9.4]
[null,null,null,null,null,null,null,null,null,null,null,null,null,139,{"$f":"IF($C$16=0,\"\",IFERROR(INDEX(TablaPartidos[Grupos Parlamentarios],MATCH(N140-1,--TablaPartidos[[#All],[0]],0)),O139))","v":"SUMAR"},-2.7,9.6999999999999993]
[null,null,null,null,null,null,null,null,null,null,null,null,null,140,{"$f":"IF($C$16=0,\"\",IFERROR(INDEX(TablaPartidos[Grupos Parlamentarios],MATCH(N141-1,--TablaPartidos[[#All],[0]],0)),O140))","v":"SUMAR"},-1.7,9.9]
[null,null,null,null,null,null,null,null,null,null,null,null,null,141,{"$f":"IF($C$16=0,\"\",IFERROR(INDEX(TablaPartidos[Grupos Parlamentarios],MATCH(N142-1,--TablaPartidos[[#All],[0]],0)),O141))","v":"SUMAR"},-0.6,10]
[null,null,null,null,null,null,null,null,null,null,null,null,null,142,{"$f":"IF($C$16=0,\"\",IFERROR(INDEX(TablaPartidos[Grupos Parlamentarios],MATCH(N143-1,--TablaPartidos[[#All],[0]],0)),O142))","v":"SUMAR"},-7,10.4]
[null,null,null,null,null,null,null,null,null,null,null,null,null,143,{"$f":"IF($C$16=0,\"\",IFERROR(INDEX(TablaPartidos[Grupos Parlamentarios],MATCH(N144-1,--TablaPartidos[[#All],[0]],0)),O143))","v":"SUMAR"},-6.2,11]
[null,null,null,null,null,null,null,null,null,null,null,null,null,144,{"$f":"IF($C$16=0,\"\",IFERROR(INDEX(TablaPartidos[Grupos Parlamentarios],MATCH(N145-1,--TablaPartidos[[#All],[0]],0)),O144))","v":"SUMAR"},-5.3,11.5]
[null,null,null,null,null,null,null,null,null,null,null,null,null,145,{"$f":"IF($C$16=0,\"\",IFERROR(INDEX(TablaPartidos[Grupos Parlamentarios],MATCH(N146-1,--TablaPartidos[[#All],[0]],0)),O145))","v":"SUMAR"},-4.4000000000000004,11.9]
[null,null,null,null,null,null,null,null,null,null,null,null,null,146,{"$f":"IF($C$16=0,\"\",IFERROR(INDEX(TablaPartidos[Grupos Parlamentarios],MATCH(N147-1,--TablaPartidos[[#All],[0]],0)),O146))","v":"SUMAR"},-3.5,12.2]
[null,null,null,null,null,null,null,null,null,null,null,null,null,147,{"$f":"IF($C$16=0,\"\",IFERROR(INDEX(TablaPartidos[Grupos Parlamentarios],MATCH(N148-1,--TablaPartidos[[#All],[0]],0)),O147))","v":"SUMAR"},-2.6,12.5]
[null,null,null,null,null,null,null,null,null,null,null,null,null,148,{"$f":"IF($C$16=0,\"\",IFERROR(INDEX(TablaPartidos[Grupos Parlamentarios],MATCH(N149-1,--TablaPartidos[[#All],[0]],0)),O148))","v":"Grupo Republicano"},-1.6,12.7]
[null,null,null,null,null,null,null,null,null,null,null,null,null,149,{"$f":"IF($C$16=0,\"\",IFERROR(INDEX(TablaPartidos[Grupos Parlamentarios],MATCH(N150-1,--TablaPartidos[[#All],[0]],0)),O149))","v":"Grupo Republicano"},-0.6,12.8]
[null,null,null,null,null,null,null,null,null,null,null,null,null,150,{"$f":"IF($C$16=0,\"\",IFERROR(INDEX(TablaPartidos[Grupos Parlamentarios],MATCH(N151-1,--TablaPartidos[[#All],[0]],0)),O150))","v":"Grupo Republicano"},-8.1,12.8]
[null,null,null,null,null,null,null,null,null,null,null,null,null,151,{"$f":"IF($C$16=0,\"\",IFERROR(INDEX(TablaPartidos[Grupos Parlamentarios],MATCH(N152-1,--TablaPartidos[[#All],[0]],0)),O151))","v":"Grupo Republicano"},-7.1,13.6]
[null,null,null,null,null,null,null,null,null,null,null,null,null,152,{"$f":"IF($C$16=0,\"\",IFERROR(INDEX(TablaPartidos[Grupos Parlamentarios],MATCH(N153-1,--TablaPartidos[[#All],[0]],0)),O152))","v":"Grupo Republicano"},-5.8,14.3]
[null,null,null,null,null,null,null,null,null,null,null,null,null,153,{"$f":"IF($C$16=0,\"\",IFERROR(INDEX(TablaPartidos[Grupos Parlamentarios],MATCH(N154-1,--TablaPartidos[[#All],[0]],0)),O153))","v":"Grupo Republicano"},-4.7,14.8]
[null,null,null,null,null,null,null,null,null,null,null,null,null,154,{"$f":"IF($C$16=0,\"\",IFERROR(INDEX(TablaPartidos[Grupos Parlamentarios],MATCH(N155-1,--TablaPartidos[[#All],[0]],0)),O154))","v":"Grupo Republicano"},-3.8,15.2]
[null,null,null,null,null,null,null,null,null,null,null,null,null,155,{"$f":"IF($C$16=0,\"\",IFERROR(INDEX(TablaPartidos[Grupos Parlamentarios],MATCH(N156-1,--TablaPartidos[[#All],[0]],0)),O155))","v":"EH Bildu"},-2.8,15.5]
[null,null,null,null,null,null,null,null,null,null,null,null,null,156,{"$f":"IF($C$16=0,\"\",IFERROR(INDEX(TablaPartidos[Grupos Parlamentarios],MATCH(N157-1,--TablaPartidos[[#All],[0]],0)),O156))","v":"EH Bildu"},-1.6,15.6]
[null,null,null,null,null,null,null,null,null,null,null,null,null,157,{"$f":"IF($C$16=0,\"\",IFERROR(INDEX(TablaPartidos[Grupos Parlamentarios],MATCH(N158-1,--TablaPartidos[[#All],[0]],0)),O157))","v":"EH Bildu"},-0.6,15.7]
[null,null,null,null,null,null,null,null,null,null,null,null,null,158,{"$f":"IF($C$16=0,\"\",IFERROR(INDEX(TablaPartidos[Grupos Parlamentarios],MATCH(N159-1,--TablaPartidos[[#All],[0]],0)),O158))","v":"EH Bildu"},-9,14.9]
[null,null,null,null,null,null,null,null,null,null,null,null,null,159,{"$f":"IF($C$16=0,\"\",IFERROR(INDEX(TablaPartidos[Grupos Parlamentarios],MATCH(N160-1,--TablaPartidos[[#All],[0]],0)),O159))","v":"EH Bildu"},-8,15.5]
[null,null,null,null,null,null,null,null,null,null,null,null,null,160,{"$f":"IF($C$16=0,\"\",IFERROR(INDEX(TablaPartidos[Grupos Parlamentarios],MATCH(N161-1,--TablaPartidos[[#All],[0]],0)),O160))","v":"EH Bildu"},-6.1,16.600000000000001]
[null,null,null,null,null,null,null,null,null,null,null,null,null,161,{"$f":"IF($C$16=0,\"\",IFERROR(INDEX(TablaPartidos[Grupos Parlamentarios],MATCH(N162-1,--TablaPartidos[[#All],[0]],0)),O161))","v":"Grupo Vasco (EAJ-PNV)"},-5.0999999999999996,17]
[null,null,null,null,null,null,null,null,null,null,null,null,null,162,{"$f":"IF($C$16=0,\"\",IFERROR(INDEX(TablaPartidos[Grupos Parlamentarios],MATCH(N163-1,--TablaPartidos[[#All],[0]],0)),O162))","v":"Grupo Vasco (EAJ-PNV)"},-4.0999999999999996,17.399999999999999]
[null,null,null,null,null,null,null,null,null,null,null,null,null,163,{"$f":"IF($C$16=0,\"\",IFERROR(INDEX(TablaPartidos[Grupos Parlamentarios],MATCH(N164-1,--TablaPartidos[[#All],[0]],0)),O163))","v":"Grupo Vasco (EAJ-PNV)"},-3.1,17.7]
[null,null,null,null,null,null,null,null,null,null,null,null,null,164,{"$f":"IF($C$16=0,\"\",IFERROR(INDEX(TablaPartidos[Grupos Parlamentarios],MATCH(N165-1,--TablaPartidos[[#All],[0]],0)),O164))","v":"Grupo Vasco (EAJ-PNV)"},-1.6,17.899999999999999]
[null,null,null,null,null,null,null,null,null,null,null,null,null,165,{"$f":"IF($C$16=0,\"\",IFERROR(INDEX(TablaPartidos[Grupos Parlamentarios],MATCH(N166-1,--TablaPartidos[[#All],[0]],0)),O165))","v":"Grupo Vasco (EAJ-PNV)"},-0.6,18]
[null,null,null,null,null,null,null,null,null,null,null,null,null,166,{"$f":"IF($C$16=0,\"\",IFERROR(INDEX(TablaPartidos[Grupos Parlamentarios],MATCH(N167-1,--TablaPartidos[[#All],[0]],0)),O166))","v":"Junts per Catalunya"},-9.9,16.8]
[null,null,null,null,null,null,null,null,null,null,null,null,null,167,{"$f":"IF($C$16=0,\"\",IFERROR(INDEX(TablaPartidos[Grupos Parlamentarios],MATCH(N168-1,--TablaPartidos[[#All],[0]],0)),O167))","v":"Junts per Catalunya"},-8.9,17.5]
[null,null,null,null,null,null,null,null,null,null,null,null,null,168,{"$f":"IF($C$16=0,\"\",IFERROR(INDEX(TablaPartidos[Grupos Parlamentarios],MATCH(N169-1,--TablaPartidos[[#All],[0]],0)),O168))","v":"Junts per Catalunya"},-7.9,18.2]
[null,null,null,null,null,null,null,null,null,null,null,null,null,169,{"$f":"IF($C$16=0,\"\",IFERROR(INDEX(TablaPartidos[Grupos Parlamentarios],MATCH(N170-1,--TablaPartidos[[#All],[0]],0)),O169))","v":"Junts per Catalunya"},-7,18.7]
[null,null,null,null,null,null,null,null,null,null,null,null,null,170,{"$f":"IF($C$16=0,\"\",IFERROR(INDEX(TablaPartidos[Grupos Parlamentarios],MATCH(N171-1,--TablaPartidos[[#All],[0]],0)),O170))","v":"Junts per Catalunya"},-6,19.100000000000001]
[null,null,null,null,null,null,null,null,null,null,null,null,null,171,{"$f":"IF($C$16=0,\"\",IFERROR(INDEX(TablaPartidos[Grupos Parlamentarios],MATCH(N172-1,--TablaPartidos[[#All],[0]],0)),O171))","v":"Junts per Catalunya"},-5,19.5]
[null,null,null,null,null,null,null,null,null,null,null,null,null,172,{"$f":"IF($C$16=0,\"\",IFERROR(INDEX(TablaPartidos[Grupos Parlamentarios],MATCH(N173-1,--TablaPartidos[[#All],[0]],0)),O172))","v":"Junts per Catalunya"},-4,19.8]
[null,null,null,null,null,null,null,null,null,null,null,null,null,173,{"$f":"IF($C$16=0,\"\",IFERROR(INDEX(TablaPartidos[Grupos Parlamentarios],MATCH(N174-1,--TablaPartidos[[#All],[0]],0)),O173))","v":"Grupo Mixto"},-3,20]
[null,null,null,null,null,null,null,null,null,null,null,null,null,174,{"$f":"IF($C$16=0,\"\",IFERROR(INDEX(TablaPartidos[Grupos Parlamentarios],MATCH(N175-1,--TablaPartidos[[#All],[0]],0)),O174))","v":"Grupo Mixto"},-2,20.2]
[null,null,null,null,null,null,null,null,null,null,null,null,null,175,{"$f":"IF($C$16=0,\"\",IFERROR(INDEX(TablaPartidos[Grupos Parlamentarios],MATCH(N176-1,--TablaPartidos[[#All],[0]],0)),O175))","v":"Grupo Mixto"},-1,20.3]
[null,null,null,null,null,null,null,null,null,null,null,null,null,176,{"$f":"IF($C$16=0,\"\",IFERROR(INDEX(TablaPartidos[Grupos Parlamentarios],MATCH(N177-1,--TablaPartidos[[#All],[0]],0)),O176))","v":"Grupo Mixto"},0,20.3]
[null,null,null,null,null,null,null,null,null,null,null,null,null,177,{"$f":"IF($C$16=0,\"\",IFERROR(INDEX(TablaPartidos[Grupos Parlamentarios],MATCH(N178-1,--TablaPartidos[[#All],[0]],0)),O177))","v":"Grupo Mixto"},1,20.3]
[null,null,null,null,null,null,null,null,null,null,null,null,null,178,{"$f":"IF($C$16=0,\"\",IFERROR(INDEX(TablaPartidos[Grupos Parlamentarios],MATCH(N179-1,--TablaPartidos[[#All],[0]],0)),O178))","v":"Grupo Mixto"},2,20.2]
[null,null,null,null,null,null,null,null,null,null,null,null,null,179,{"$f":"IF($C$16=0,\"\",IFERROR(INDEX(TablaPartidos[Grupos Parlamentarios],MATCH(N180-1,--TablaPartidos[[#All],[0]],0)),O179))","v":"Grupo Mixto"},3,20]
[null,null,null,null,null,null,null,null,null,null,null,null,null,180,{"$f":"IF($C$16=0,\"\",IFERROR(INDEX(TablaPartidos[Grupos Parlamentarios],MATCH(N181-1,--TablaPartidos[[#All],[0]],0)),O180))","v":"Grupo Mixto"},4,19.8]
[null,null,null,null,null,null,null,null,null,null,null,null,null,181,{"$f":"IF($C$16=0,\"\",IFERROR(INDEX(TablaPartidos[Grupos Parlamentarios],MATCH(N182-1,--TablaPartidos[[#All],[0]],0)),O181))","v":"Vox"},5,19.5]
[null,null,null,null,null,null,null,null,null,null,null,null,null,182,{"$f":"IF($C$16=0,\"\",IFERROR(INDEX(TablaPartidos[Grupos Parlamentarios],MATCH(N183-1,--TablaPartidos[[#All],[0]],0)),O182))","v":"Vox"},6,19.100000000000001]
[null,null,null,null,null,null,null,null,null,null,null,null,null,183,{"$f":"IF($C$16=0,\"\",IFERROR(INDEX(TablaPartidos[Grupos Parlamentarios],MATCH(N184-1,--TablaPartidos[[#All],[0]],0)),O183))","v":"Vox"},7,18.7]
[null,null,null,null,null,null,null,null,null,null,null,null,null,184,{"$f":"IF($C$16=0,\"\",IFERROR(INDEX(TablaPartidos[Grupos Parlamentarios],MATCH(N185-1,--TablaPartidos[[#All],[0]],0)),O184))","v":"Vox"},7.9,18.2]
[null,null,null,null,null,null,null,null,null,null,null,null,null,185,{"$f":"IF($C$16=0,\"\",IFERROR(INDEX(TablaPartidos[Grupos Parlamentarios],MATCH(N186-1,--TablaPartidos[[#All],[0]],0)),O185))","v":"Vox"},8.9,17.5]
[null,null,null,null,null,null,null,null,null,null,null,null,null,186,{"$f":"IF($C$16=0,\"\",IFERROR(INDEX(TablaPartidos[Grupos Parlamentarios],MATCH(N187-1,--TablaPartidos[[#All],[0]],0)),O186))","v":"Vox"},9.9,16.8]
[null,null,null,null,null,null,null,null,null,null,null,null,null,187,{"$f":"IF($C$16=0,\"\",IFERROR(INDEX(TablaPartidos[Grupos Parlamentarios],MATCH(N188-1,--TablaPartidos[[#All],[0]],0)),O187))","v":"Vox"},0.6,18]
[null,null,null,null,null,null,null,null,null,null,null,null,null,188,{"$f":"IF($C$16=0,\"\",IFERROR(INDEX(TablaPartidos[Grupos Parlamentarios],MATCH(N189-1,--TablaPartidos[[#All],[0]],0)),O188))","v":"Vox"},1.6,17.899999999999999]
[null,null,null,null,null,null,null,null,null,null,null,null,null,189,{"$f":"IF($C$16=0,\"\",IFERROR(INDEX(TablaPartidos[Grupos Parlamentarios],MATCH(N190-1,--TablaPartidos[[#All],[0]],0)),O189))","v":"Vox"},3.1,17.7]
[null,null,null,null,null,null,null,null,null,null,null,null,null,190,{"$f":"IF($C$16=0,\"\",IFERROR(INDEX(TablaPartidos[Grupos Parlamentarios],MATCH(N191-1,--TablaPartidos[[#All],[0]],0)),O190))","v":"Vox"},4.0999999999999996,17.399999999999999]
[null,null,null,null,null,null,null,null,null,null,null,null,null,191,{"$f":"IF($C$16=0,\"\",IFERROR(INDEX(TablaPartidos[Grupos Parlamentarios],MATCH(N192-1,--TablaPartidos[[#All],[0]],0)),O191))","v":"Vox"},5.0999999999999996,17]
[null,null,null,null,null,null,null,null,null,null,null,null,null,192,{"$f":"IF($C$16=0,\"\",IFERROR(INDEX(TablaPartidos[Grupos Parlamentarios],MATCH(N193-1,--TablaPartidos[[#All],[0]],0)),O192))","v":"Vox"},6.1,16.600000000000001]
[null,null,null,null,null,null,null,null,null,null,null,null,null,193,{"$f":"IF($C$16=0,\"\",IFERROR(INDEX(TablaPartidos[Grupos Parlamentarios],MATCH(N194-1,--TablaPartidos[[#All],[0]],0)),O193))","v":"Vox"},8,15.5]
[null,null,null,null,null,null,null,null,null,null,null,null,null,194,{"$f":"IF($C$16=0,\"\",IFERROR(INDEX(TablaPartidos[Grupos Parlamentarios],MATCH(N195-1,--TablaPartidos[[#All],[0]],0)),O194))","v":"Vox"},9,14.9]
[null,null,null,null,null,null,null,null,null,null,null,null,null,195,{"$f":"IF($C$16=0,\"\",IFERROR(INDEX(TablaPartidos[Grupos Parlamentarios],MATCH(N196-1,--TablaPartidos[[#All],[0]],0)),O195))","v":"Vox"},0.6,15.7]
[null,null,null,null,null,null,null,null,null,null,null,null,null,196,{"$f":"IF($C$16=0,\"\",IFERROR(INDEX(TablaPartidos[Grupos Parlamentarios],MATCH(N197-1,--TablaPartidos[[#All],[0]],0)),O196))","v":"Vox"},1.6,15.6]
[null,null,null,null,null,null,null,null,null,null,null,null,null,197,{"$f":"IF($C$16=0,\"\",IFERROR(INDEX(TablaPartidos[Grupos Parlamentarios],MATCH(N198-1,--TablaPartidos[[#All],[0]],0)),O197))","v":"Vox"},2.8,15.5]
[null,null,null,null,null,null,null,null,null,null,null,null,null,198,{"$f":"IF($C$16=0,\"\",IFERROR(INDEX(TablaPartidos[Grupos Parlamentarios],MATCH(N199-1,--TablaPartidos[[#All],[0]],0)),O198))","v":"Vox"},3.8,15.2]
[null,null,null,null,null,null,null,null,null,null,null,null,null,199,{"$f":"IF($C$16=0,\"\",IFERROR(INDEX(TablaPartidos[Grupos Parlamentarios],MATCH(N200-1,--TablaPartidos[[#All],[0]],0)),O199))","v":"Vox"},4.7,14.8]
[null,null,null,null,null,null,null,null,null,null,null,null,null,200,{"$f":"IF($C$16=0,\"\",IFERROR(INDEX(TablaPartidos[Grupos Parlamentarios],MATCH(N201-1,--TablaPartidos[[#All],[0]],0)),O200))","v":"Vox"},5.8,14.3]
[null,null,null,null,null,null,null,null,null,null,null,null,null,201,{"$f":"IF($C$16=0,\"\",IFERROR(INDEX(TablaPartidos[Grupos Parlamentarios],MATCH(N202-1,--TablaPartidos[[#All],[0]],0)),O201))","v":"Vox"},7.1,13.6]
[null,null,null,null,null,null,null,null,null,null,null,null,null,202,{"$f":"IF($C$16=0,\"\",IFERROR(INDEX(TablaPartidos[Grupos Parlamentarios],MATCH(N203-1,--TablaPartidos[[#All],[0]],0)),O202))","v":"Vox"},8.1,12.8]
[null,null,null,null,null,null,null,null,null,null,null,null,null,203,{"$f":"IF($C$16=0,\"\",IFERROR(INDEX(TablaPartidos[Grupos Parlamentarios],MATCH(N204-1,--TablaPartidos[[#All],[0]],0)),O203))","v":"Vox"},0.6,12.8]
[null,null,null,null,null,null,null,null,null,null,null,null,null,204,{"$f":"IF($C$16=0,\"\",IFERROR(INDEX(TablaPartidos[Grupos Parlamentarios],MATCH(N205-1,--TablaPartidos[[#All],[0]],0)),O204))","v":"Vox"},1.6,12.7]
[null,null,null,null,null,null,null,null,null,null,null,null,null,205,{"$f":"IF($C$16=0,\"\",IFERROR(INDEX(TablaPartidos[Grupos Parlamentarios],MATCH(N206-1,--TablaPartidos[[#All],[0]],0)),O205))","v":"Vox"},2.6,12.5]
[null,null,null,null,null,null,null,null,null,null,null,null,null,206,{"$f":"IF($C$16=0,\"\",IFERROR(INDEX(TablaPartidos[Grupos Parlamentarios],MATCH(N207-1,--TablaPartidos[[#All],[0]],0)),O206))","v":"Vox"},3.5,12.2]
[null,null,null,null,null,null,null,null,null,null,null,null,null,207,{"$f":"IF($C$16=0,\"\",IFERROR(INDEX(TablaPartidos[Grupos Parlamentarios],MATCH(N208-1,--TablaPartidos[[#All],[0]],0)),O207))","v":"Vox"},4.4000000000000004,11.9]
[null,null,null,null,null,null,null,null,null,null,null,null,null,208,{"$f":"IF($C$16=0,\"\",IFERROR(INDEX(TablaPartidos[Grupos Parlamentarios],MATCH(N209-1,--TablaPartidos[[#All],[0]],0)),O208))","v":"Vox"},5.3,11.5]
[null,null,null,null,null,null,null,null,null,null,null,null,null,209,{"$f":"IF($C$16=0,\"\",IFERROR(INDEX(TablaPartidos[Grupos Parlamentarios],MATCH(N210-1,--TablaPartidos[[#All],[0]],0)),O209))","v":"Vox"},6.2,11]
[null,null,null,null,null,null,null,null,null,null,null,null,null,210,{"$f":"IF($C$16=0,\"\",IFERROR(INDEX(TablaPartidos[Grupos Parlamentarios],MATCH(N211-1,--TablaPartidos[[#All],[0]],0)),O210))","v":"Vox"},7,10.4]
[null,null,null,null,null,null,null,null,null,null,null,null,null,211,{"$f":"IF($C$16=0,\"\",IFERROR(INDEX(TablaPartidos[Grupos Parlamentarios],MATCH(N212-1,--TablaPartidos[[#All],[0]],0)),O211))","v":"Vox"},0.6,10]
[null,null,null,null,null,null,null,null,null,null,null,null,null,212,{"$f":"IF($C$16=0,\"\",IFERROR(INDEX(TablaPartidos[Grupos Parlamentarios],MATCH(N213-1,--TablaPartidos[[#All],[0]],0)),O212))","v":"Vox"},1.7,9.9]
[null,null,null,null,null,null,null,null,null,null,null,null,null,213,{"$f":"IF($C$16=0,\"\",IFERROR(INDEX(TablaPartidos[Grupos Parlamentarios],MATCH(N214-1,--TablaPartidos[[#All],[0]],0)),O213))","v":"Vox"},2.7,9.6999999999999993]
[null,null,null,null,null,null,null,null,null,null,null,null,null,214,{"$f":"IF($C$16=0,\"\",IFERROR(INDEX(TablaPartidos[Grupos Parlamentarios],MATCH(N215-1,--TablaPartidos[[#All],[0]],0)),O214))","v":"Partido Popular"},3.7,9.4]
[null,null,null,null,null,null,null,null,null,null,null,null,null,215,{"$f":"IF($C$16=0,\"\",IFERROR(INDEX(TablaPartidos[Grupos Parlamentarios],MATCH(N216-1,--TablaPartidos[[#All],[0]],0)),O215))","v":"Partido Popular"},4.7,8.9]
[null,null,null,null,null,null,null,null,null,null,null,null,null,216,{"$f":"IF($C$16=0,\"\",IFERROR(INDEX(TablaPartidos[Grupos Parlamentarios],MATCH(N217-1,--TablaPartidos[[#All],[0]],0)),O216))","v":"Partido Popular"},5.7,8.1999999999999993]
[null,null,null,null,null,null,null,null,null,null,null,null,null,217,{"$f":"IF($C$16=0,\"\",IFERROR(INDEX(TablaPartidos[Grupos Parlamentarios],MATCH(N218-1,--TablaPartidos[[#All],[0]],0)),O217))","v":"Partido Popular"},0.5,7.2]
[null,null,null,null,null,null,null,null,null,null,null,null,null,218,{"$f":"IF($C$16=0,\"\",IFERROR(INDEX(TablaPartidos[Grupos Parlamentarios],MATCH(N219-1,--TablaPartidos[[#All],[0]],0)),O218))","v":"Partido Popular"},1.5,7.1]
[null,null,null,null,null,null,null,null,null,null,null,null,null,219,{"$f":"IF($C$16=0,\"\",IFERROR(INDEX(TablaPartidos[Grupos Parlamentarios],MATCH(N220-1,--TablaPartidos[[#All],[0]],0)),O219))","v":"Partido Popular"},2.5,6.9]
[null,null,null,null,null,null,null,null,null,null,null,null,null,220,{"$f":"IF($C$16=0,\"\",IFERROR(INDEX(TablaPartidos[Grupos Parlamentarios],MATCH(N221-1,--TablaPartidos[[#All],[0]],0)),O220))","v":"Partido Popular"},3.6,6.4]
[null,null,null,null,null,null,null,null,null,null,null,null,null,221,{"$f":"IF($C$16=0,\"\",IFERROR(INDEX(TablaPartidos[Grupos Parlamentarios],MATCH(N222-1,--TablaPartidos[[#All],[0]],0)),O221))","v":"Partido Popular"},4.5999999999999996,5.8]
[null,null,null,null,null,null,null,null,null,null,null,null,null,222,{"$f":"IF($C$16=0,\"\",IFERROR(INDEX(TablaPartidos[Grupos Parlamentarios],MATCH(N223-1,--TablaPartidos[[#All],[0]],0)),O222))","v":"Partido Popular"},1.2,4.2]
[null,null,null,null,null,null,null,null,null,null,null,null,null,223,{"$f":"IF($C$16=0,\"\",IFERROR(INDEX(TablaPartidos[Grupos Parlamentarios],MATCH(N224-1,--TablaPartidos[[#All],[0]],0)),O223))","v":"Partido Popular"},2.4,3.9]
[null,null,null,null,null,null,null,null,null,null,null,null,null,224,{"$f":"IF($C$16=0,\"\",IFERROR(INDEX(TablaPartidos[Grupos Parlamentarios],MATCH(N225-1,--TablaPartidos[[#All],[0]],0)),O224))","v":"Partido Popular"},3.5,3.4]
[null,null,null,null,null,null,null,null,null,null,null,null,null,225,{"$f":"IF($C$16=0,\"\",IFERROR(INDEX(TablaPartidos[Grupos Parlamentarios],MATCH(N226-1,--TablaPartidos[[#All],[0]],0)),O225))","v":"Partido Popular"},13,14.7]
[null,null,null,null,null,null,null,null,null,null,null,null,null,226,{"$f":"IF($C$16=0,\"\",IFERROR(INDEX(TablaPartidos[Grupos Parlamentarios],MATCH(N227-1,--TablaPartidos[[#All],[0]],0)),O226))","v":"Partido Popular"},13.8,13.8]
[null,null,null,null,null,null,null,null,null,null,null,null,null,227,{"$f":"IF($C$16=0,\"\",IFERROR(INDEX(TablaPartidos[Grupos Parlamentarios],MATCH(N228-1,--TablaPartidos[[#All],[0]],0)),O227))","v":"Partido Popular"},14.7,12.8]
[null,null,null,null,null,null,null,null,null,null,null,null,null,228,{"$f":"IF($C$16=0,\"\",IFERROR(INDEX(TablaPartidos[Grupos Parlamentarios],MATCH(N229-1,--TablaPartidos[[#All],[0]],0)),O228))","v":"Partido Popular"},12.3,12.2]
[null,null,null,null,null,null,null,null,null,null,null,null,null,229,{"$f":"IF($C$16=0,\"\",IFERROR(INDEX(TablaPartidos[Grupos Parlamentarios],MATCH(N230-1,--TablaPartidos[[#All],[0]],0)),O229))","v":"Partido Popular"},15.6,11.8]
[null,null,null,null,null,null,null,null,null,null,null,null,null,230,{"$f":"IF($C$16=0,\"\",IFERROR(INDEX(TablaPartidos[Grupos Parlamentarios],MATCH(N231-1,--TablaPartidos[[#All],[0]],0)),O230))","v":"Partido Popular"},13,11.4]
[null,null,null,null,null,null,null,null,null,null,null,null,null,231,{"$f":"IF($C$16=0,\"\",IFERROR(INDEX(TablaPartidos[Grupos Parlamentarios],MATCH(N232-1,--TablaPartidos[[#All],[0]],0)),O231))","v":"Partido Popular"},16.3,10.8]
[null,null,null,null,null,null,null,null,null,null,null,null,null,232,{"$f":"IF($C$16=0,\"\",IFERROR(INDEX(TablaPartidos[Grupos Parlamentarios],MATCH(N233-1,--TablaPartidos[[#All],[0]],0)),O232))","v":"Partido Popular"},13.7,10.6]
[null,null,null,null,null,null,null,null,null,null,null,null,null,233,{"$f":"IF($C$16=0,\"\",IFERROR(INDEX(TablaPartidos[Grupos Parlamentarios],MATCH(N234-1,--TablaPartidos[[#All],[0]],0)),O233))","v":"Partido Popular"},11,10.5]
[null,null,null,null,null,null,null,null,null,null,null,null,null,234,{"$f":"IF($C$16=0,\"\",IFERROR(INDEX(TablaPartidos[Grupos Parlamentarios],MATCH(N235-1,--TablaPartidos[[#All],[0]],0)),O234))","v":"Partido Popular"},14.4,9.6]
[null,null,null,null,null,null,null,null,null,null,null,null,null,235,{"$f":"IF($C$16=0,\"\",IFERROR(INDEX(TablaPartidos[Grupos Parlamentarios],MATCH(N236-1,--TablaPartidos[[#All],[0]],0)),O235))","v":"Partido Popular"},11.7,9.6]
[null,null,null,null,null,null,null,null,null,null,null,null,null,236,{"$f":"IF($C$16=0,\"\",IFERROR(INDEX(TablaPartidos[Grupos Parlamentarios],MATCH(N237-1,--TablaPartidos[[#All],[0]],0)),O236))","v":"Partido Popular"},17.100000000000001,9.4]
[null,null,null,null,null,null,null,null,null,null,null,null,null,237,{"$f":"IF($C$16=0,\"\",IFERROR(INDEX(TablaPartidos[Grupos Parlamentarios],MATCH(N238-1,--TablaPartidos[[#All],[0]],0)),O237))","v":"Partido Popular"},12.4,8.6999999999999993]
[null,null,null,null,null,null,null,null,null,null,null,null,null,238,{"$f":"IF($C$16=0,\"\",IFERROR(INDEX(TablaPartidos[Grupos Parlamentarios],MATCH(N239-1,--TablaPartidos[[#All],[0]],0)),O238))","v":"Partido Popular"},9.5,8.4]
[null,null,null,null,null,null,null,null,null,null,null,null,null,239,{"$f":"IF($C$16=0,\"\",IFERROR(INDEX(TablaPartidos[Grupos Parlamentarios],MATCH(N240-1,--TablaPartidos[[#All],[0]],0)),O239))","v":"Partido Popular"},17.7,8.1999999999999993]
[null,null,null,null,null,null,null,null,null,null,null,null,null,240,{"$f":"IF($C$16=0,\"\",IFERROR(INDEX(TablaPartidos[Grupos Parlamentarios],MATCH(N241-1,--TablaPartidos[[#All],[0]],0)),O240))","v":"Partido Popular"},13.1,7.8]
[null,null,null,null,null,null,null,null,null,null,null,null,null,241,{"$f":"IF($C$16=0,\"\",IFERROR(INDEX(TablaPartidos[Grupos Parlamentarios],MATCH(N242-1,--TablaPartidos[[#All],[0]],0)),O241))","v":"Partido Popular"},15.6,7.7]
[null,null,null,null,null,null,null,null,null,null,null,null,null,242,{"$f":"IF($C$16=0,\"\",IFERROR(INDEX(TablaPartidos[Grupos Parlamentarios],MATCH(N243-1,--TablaPartidos[[#All],[0]],0)),O242))","v":"Partido Popular"},10.199999999999999,7.5]
[null,null,null,null,null,null,null,null,null,null,null,null,null,243,{"$f":"IF($C$16=0,\"\",IFERROR(INDEX(TablaPartidos[Grupos Parlamentarios],MATCH(N244-1,--TablaPartidos[[#All],[0]],0)),O243))","v":"Partido Popular"},18.399999999999999,6.8]
[null,null,null,null,null,null,null,null,null,null,null,null,null,244,{"$f":"IF($C$16=0,\"\",IFERROR(INDEX(TablaPartidos[Grupos Parlamentarios],MATCH(N245-1,--TablaPartidos[[#All],[0]],0)),O244))","v":"Partido Popular"},16.100000000000001,6.6]
[null,null,null,null,null,null,null,null,null,null,null,null,null,245,{"$f":"IF($C$16=0,\"\",IFERROR(INDEX(TablaPartidos[Grupos Parlamentarios],MATCH(N246-1,--TablaPartidos[[#All],[0]],0)),O245))","v":"Partido Popular"},10.9,6.6]
[null,null,null,null,null,null,null,null,null,null,null,null,null,246,{"$f":"IF($C$16=0,\"\",IFERROR(INDEX(TablaPartidos[Grupos Parlamentarios],MATCH(N247-1,--TablaPartidos[[#All],[0]],0)),O246))","v":"Partido Popular"},13.9,6.5]
[null,null,null,null,null,null,null,null,null,null,null,null,null,247,{"$f":"IF($C$16=0,\"\",IFERROR(INDEX(TablaPartidos[Grupos Parlamentarios],MATCH(N248-1,--TablaPartidos[[#All],[0]],0)),O247))","v":"Partido Popular"},8.1,6.1]
[null,null,null,null,null,null,null,null,null,null,null,null,null,248,{"$f":"IF($C$16=0,\"\",IFERROR(INDEX(TablaPartidos[Grupos Parlamentarios],MATCH(N249-1,--TablaPartidos[[#All],[0]],0)),O248))","v":"Partido Popular"},11.6,5.7]
[null,null,null,null,null,null,null,null,null,null,null,null,null,249,{"$f":"IF($C$16=0,\"\",IFERROR(INDEX(TablaPartidos[Grupos Parlamentarios],MATCH(N250-1,--TablaPartidos[[#All],[0]],0)),O249))","v":"Partido Popular"},18.899999999999999,5.4]
[null,null,null,null,null,null,null,null,null,null,null,null,null,250,{"$f":"IF($C$16=0,\"\",IFERROR(INDEX(TablaPartidos[Grupos Parlamentarios],MATCH(N251-1,--TablaPartidos[[#All],[0]],0)),O250))","v":"Partido Popular"},16.600000000000001,5.4]
[null,null,null,null,null,null,null,null,null,null,null,null,null,251,{"$f":"IF($C$16=0,\"\",IFERROR(INDEX(TablaPartidos[Grupos Parlamentarios],MATCH(N252-1,--TablaPartidos[[#All],[0]],0)),O251))","v":"Partido Popular"},14.4,5.4]
[null,null,null,null,null,null,null,null,null,null,null,null,null,252,{"$f":"IF($C$16=0,\"\",IFERROR(INDEX(TablaPartidos[Grupos Parlamentarios],MATCH(N253-1,--TablaPartidos[[#All],[0]],0)),O252))","v":"Partido Popular"},8.9,5.3]
[null,null,null,null,null,null,null,null,null,null,null,null,null,253,{"$f":"IF($C$16=0,\"\",IFERROR(INDEX(TablaPartidos[Grupos Parlamentarios],MATCH(N254-1,--TablaPartidos[[#All],[0]],0)),O253))","v":"Partido Popular"},12.2,4.8]
[null,null,null,null,null,null,null,null,null,null,null,null,null,254,{"$f":"IF($C$16=0,\"\",IFERROR(INDEX(TablaPartidos[Grupos Parlamentarios],MATCH(N255-1,--TablaPartidos[[#All],[0]],0)),O254))","v":"Partido Popular"},9.6,4.5]
[null,null,null,null,null,null,null,null,null,null,null,null,null,255,{"$f":"IF($C$16=0,\"\",IFERROR(INDEX(TablaPartidos[Grupos Parlamentarios],MATCH(N256-1,--TablaPartidos[[#All],[0]],0)),O255))","v":"Partido Popular"},17,4.2]
[null,null,null,null,null,null,null,null,null,null,null,null,null,256,{"$f":"IF($C$16=0,\"\",IFERROR(INDEX(TablaPartidos[Grupos Parlamentarios],MATCH(N257-1,--TablaPartidos[[#All],[0]],0)),O256))","v":"Partido Popular"},14.8,4.3]
[null,null,null,null,null,null,null,null,null,null,null,null,null,257,{"$f":"IF($C$16=0,\"\",IFERROR(INDEX(TablaPartidos[Grupos Parlamentarios],MATCH(N258-1,--TablaPartidos[[#All],[0]],0)),O257))","v":"Partido Popular"},19.399999999999999,4]
[null,null,null,null,null,null,null,null,null,null,null,null,null,258,{"$f":"IF($C$16=0,\"\",IFERROR(INDEX(TablaPartidos[Grupos Parlamentarios],MATCH(N259-1,--TablaPartidos[[#All],[0]],0)),O258))","v":"Partido Popular"},12.8,3.8]
[null,null,null,null,null,null,null,null,null,null,null,null,null,259,{"$f":"IF($C$16=0,\"\",IFERROR(INDEX(TablaPartidos[Grupos Parlamentarios],MATCH(N260-1,--TablaPartidos[[#All],[0]],0)),O259))","v":"Partido Popular"},7.1,3.6]
[null,null,null,null,null,null,null,null,null,null,null,null,null,260,{"$f":"IF($C$16=0,\"\",IFERROR(INDEX(TablaPartidos[Grupos Parlamentarios],MATCH(N261-1,--TablaPartidos[[#All],[0]],0)),O260))","v":"Partido Popular"},10.199999999999999,3.6]
[null,null,null,null,null,null,null,null,null,null,null,null,null,261,{"$f":"IF($C$16=0,\"\",IFERROR(INDEX(TablaPartidos[Grupos Parlamentarios],MATCH(N262-1,--TablaPartidos[[#All],[0]],0)),O261))","v":"Partido Popular"},15.2,3.2]
[null,null,null,null,null,null,null,null,null,null,null,null,null,262,{"$f":"IF($C$16=0,\"\",IFERROR(INDEX(TablaPartidos[Grupos Parlamentarios],MATCH(N263-1,--TablaPartidos[[#All],[0]],0)),O262))","v":"Partido Popular"},13.2,2.7]
[null,null,null,null,null,null,null,null,null,null,null,null,null,263,{"$f":"IF($C$16=0,\"\",IFERROR(INDEX(TablaPartidos[Grupos Parlamentarios],MATCH(N264-1,--TablaPartidos[[#All],[0]],0)),O263))","v":"Partido Popular"},7.9,2.7]
[null,null,null,null,null,null,null,null,null,null,null,null,null,264,{"$f":"IF($C$16=0,\"\",IFERROR(INDEX(TablaPartidos[Grupos Parlamentarios],MATCH(N265-1,--TablaPartidos[[#All],[0]],0)),O264))","v":"Partido Popular"},19.7,2.6]
[null,null,null,null,null,null,null,null,null,null,null,null,null,265,{"$f":"IF($C$16=0,\"\",IFERROR(INDEX(TablaPartidos[Grupos Parlamentarios],MATCH(N266-1,--TablaPartidos[[#All],[0]],0)),O265))","v":"Partido Popular"},10.8,2.5]
[null,null,null,null,null,null,null,null,null,null,null,null,null,266,{"$f":"IF($C$16=0,\"\",IFERROR(INDEX(TablaPartidos[Grupos Parlamentarios],MATCH(N267-1,--TablaPartidos[[#All],[0]],0)),O266))","v":"Partido Popular"},17.5,1.8]
[null,null,null,null,null,null,null,null,null,null,null,null,null,267,{"$f":"IF($C$16=0,\"\",IFERROR(INDEX(TablaPartidos[Grupos Parlamentarios],MATCH(N268-1,--TablaPartidos[[#All],[0]],0)),O267))","v":"Partido Popular"},8.6,1.8]
[null,null,null,null,null,null,null,null,null,null,null,null,null,268,{"$f":"IF($C$16=0,\"\",IFERROR(INDEX(TablaPartidos[Grupos Parlamentarios],MATCH(N269-1,--TablaPartidos[[#All],[0]],0)),O268))","v":"Partido Popular"},6,1.7]
[null,null,null,null,null,null,null,null,null,null,null,null,null,269,{"$f":"IF($C$16=0,\"\",IFERROR(INDEX(TablaPartidos[Grupos Parlamentarios],MATCH(N270-1,--TablaPartidos[[#All],[0]],0)),O269))","v":"Partido Popular"},13.6,1.6]
[null,null,null,null,null,null,null,null,null,null,null,null,null,270,{"$f":"IF($C$16=0,\"\",IFERROR(INDEX(TablaPartidos[Grupos Parlamentarios],MATCH(N271-1,--TablaPartidos[[#All],[0]],0)),O270))","v":"Partido Popular"},15.5,1.4]
[null,null,null,null,null,null,null,null,null,null,null,null,null,271,{"$f":"IF($C$16=0,\"\",IFERROR(INDEX(TablaPartidos[Grupos Parlamentarios],MATCH(N272-1,--TablaPartidos[[#All],[0]],0)),O271))","v":"Partido Popular"},11.3,1.5]
[null,null,null,null,null,null,null,null,null,null,null,null,null,272,{"$f":"IF($C$16=0,\"\",IFERROR(INDEX(TablaPartidos[Grupos Parlamentarios],MATCH(N273-1,--TablaPartidos[[#All],[0]],0)),O272))","v":"Partido Popular"},19.899999999999999,1.2]
[null,null,null,null,null,null,null,null,null,null,null,null,null,273,{"$f":"IF($C$16=0,\"\",IFERROR(INDEX(TablaPartidos[Grupos Parlamentarios],MATCH(N274-1,--TablaPartidos[[#All],[0]],0)),O273))","v":"Partido Popular"},17.7,0.6]
[null,null,null,null,null,null,null,null,null,null,null,null,null,274,{"$f":"IF($C$16=0,\"\",IFERROR(INDEX(TablaPartidos[Grupos Parlamentarios],MATCH(N275-1,--TablaPartidos[[#All],[0]],0)),O274))","v":"Partido Popular"},9.1999999999999993,0.6]
[null,null,null,null,null,null,null,null,null,null,null,null,null,275,{"$f":"IF($C$16=0,\"\",IFERROR(INDEX(TablaPartidos[Grupos Parlamentarios],MATCH(N276-1,--TablaPartidos[[#All],[0]],0)),O275))","v":"Partido Popular"},6.9,0.6]
[null,null,null,null,null,null,null,null,null,null,null,null,null,276,{"$f":"IF($C$16=0,\"\",IFERROR(INDEX(TablaPartidos[Grupos Parlamentarios],MATCH(N277-1,--TablaPartidos[[#All],[0]],0)),O276))","v":"Partido Popular"},13.8,0.5]
[null,null,null,null,null,null,null,null,null,null,null,null,null,277,{"$f":"IF($C$16=0,\"\",IFERROR(INDEX(TablaPartidos[Grupos Parlamentarios],MATCH(N278-1,--TablaPartidos[[#All],[0]],0)),O277))","v":"Partido Popular"},11.6,0.4]
[null,null,null,null,null,null,null,null,null,null,null,null,null,278,{"$f":"IF($C$16=0,\"\",IFERROR(INDEX(TablaPartidos[Grupos Parlamentarios],MATCH(N279-1,--TablaPartidos[[#All],[0]],0)),O278))","v":"Partido Popular"},15.8,0.1]
[null,null,null,null,null,null,null,null,null,null,null,null,null,279,{"$f":"IF($C$16=0,\"\",IFERROR(INDEX(TablaPartidos[Grupos Parlamentarios],MATCH(N280-1,--TablaPartidos[[#All],[0]],0)),O279))","v":"Partido Popular"},20,0]
[null,null,null,null,null,null,null,null,null,null,null,null,null,280,{"$f":"IF($C$16=0,\"\",IFERROR(INDEX(TablaPartidos[Grupos Parlamentarios],MATCH(N281-1,--TablaPartidos[[#All],[0]],0)),O280))","v":"Partido Popular"},9.8000000000000007,-0.6]
[null,null,null,null,null,null,null,null,null,null,null,null,null,281,{"$f":"IF($C$16=0,\"\",IFERROR(INDEX(TablaPartidos[Grupos Parlamentarios],MATCH(N282-1,--TablaPartidos[[#All],[0]],0)),O281))","v":"Partido Popular"},7.5,-0.4]
[null,null,null,null,null,null,null,null,null,null,null,null,null,282,{"$f":"IF($C$16=0,\"\",IFERROR(INDEX(TablaPartidos[Grupos Parlamentarios],MATCH(N283-1,--TablaPartidos[[#All],[0]],0)),O282))","v":"Partido Popular"},17.899999999999999,-0.7]
[null,null,null,null,null,null,null,null,null,null,null,null,null,283,{"$f":"IF($C$16=0,\"\",IFERROR(INDEX(TablaPartidos[Grupos Parlamentarios],MATCH(N284-1,--TablaPartidos[[#All],[0]],0)),O283))","v":"Partido Popular"},13.9,-0.7]
[null,null,null,null,null,null,null,null,null,null,null,null,null,284,{"$f":"IF($C$16=0,\"\",IFERROR(INDEX(TablaPartidos[Grupos Parlamentarios],MATCH(N285-1,--TablaPartidos[[#All],[0]],0)),O284))","v":"Partido Popular"},11.9,-0.7]
[null,null,null,null,null,null,null,null,null,null,null,null,null,285,{"$f":"IF($C$16=0,\"\",IFERROR(INDEX(TablaPartidos[Grupos Parlamentarios],MATCH(N286-1,--TablaPartidos[[#All],[0]],0)),O285))","v":"Partido Popular"},15.9,-1.2]
[null,null,null,null,null,null,null,null,null,null,null,null,null,286,{"$f":"IF($C$16=0,\"\",IFERROR(INDEX(TablaPartidos[Grupos Parlamentarios],MATCH(N287-1,--TablaPartidos[[#All],[0]],0)),O286))","v":"Partido Popular"},20,-1.3]
[null,null,null,null,null,null,null,null,null,null,null,null,null,287,{"$f":"IF($C$16=0,\"\",IFERROR(INDEX(TablaPartidos[Grupos Parlamentarios],MATCH(N288-1,--TablaPartidos[[#All],[0]],0)),O287))","v":"Partido Popular"},14,-1.9]
[null,null,null,null,null,null,null,null,null,null,null,null,null,288,{"$f":"IF($C$16=0,\"\",IFERROR(INDEX(TablaPartidos[Grupos Parlamentarios],MATCH(N289-1,--TablaPartidos[[#All],[0]],0)),O288))","v":"Partido Popular"},12,-1.9]
[null,null,null,null,null,null,null,null,null,null,null,null,null,289,{"$f":"IF($C$16=0,\"\",IFERROR(INDEX(TablaPartidos[Grupos Parlamentarios],MATCH(N290-1,--TablaPartidos[[#All],[0]],0)),O289))","v":"Partido Popular"},10,-1.9]
[null,null,null,null,null,null,null,null,null,null,null,null,null,290,{"$f":"IF($C$16=0,\"\",IFERROR(INDEX(TablaPartidos[Grupos Parlamentarios],MATCH(N291-1,--TablaPartidos[[#All],[0]],0)),O290))","v":"Partido Popular"},8,-1.9]
[null,null,null,null,null,null,null,null,null,null,null,null,null,291,{"$f":"IF($C$16=0,\"\",IFERROR(INDEX(TablaPartidos[Grupos Parlamentarios],MATCH(N292-1,--TablaPartidos[[#All],[0]],0)),O291))","v":"Partido Popular"},18,-2]
[null,null,null,null,null,null,null,null,null,null,null,null,null,292,{"$f":"IF($C$16=0,\"\",IFERROR(INDEX(TablaPartidos[Grupos Parlamentarios],MATCH(N293-1,--TablaPartidos[[#All],[0]],0)),O292))","v":"Partido Popular"},16,-2.4]
[null,null,null,null,null,null,null,null,null,null,null,null,null,293,{"$f":"IF($C$16=0,\"\",IFERROR(INDEX(TablaPartidos[Grupos Parlamentarios],MATCH(N294-1,--TablaPartidos[[#All],[0]],0)),O293))","v":"Partido Popular"},20,-2.6]
[null,null,null,null,null,null,null,null,null,null,null,null,null,294,{"$f":"IF($C$16=0,\"\",IFERROR(INDEX(TablaPartidos[Grupos Parlamentarios],MATCH(N295-1,--TablaPartidos[[#All],[0]],0)),O294))","v":"Partido Popular"},14,-3.2]
[null,null,null,null,null,null,null,null,null,null,null,null,null,295,{"$f":"IF($C$16=0,\"\",IFERROR(INDEX(TablaPartidos[Grupos Parlamentarios],MATCH(N296-1,--TablaPartidos[[#All],[0]],0)),O295))","v":"Partido Popular"},12,-3.2]
[null,null,null,null,null,null,null,null,null,null,null,null,null,296,{"$f":"IF($C$16=0,\"\",IFERROR(INDEX(TablaPartidos[Grupos Parlamentarios],MATCH(N297-1,--TablaPartidos[[#All],[0]],0)),O296))","v":"Partido Popular"},10,-3.2]
[null,null,null,null,null,null,null,null,null,null,null,null,null,297,{"$f":"IF($C$16=0,\"\",IFERROR(INDEX(TablaPartidos[Grupos Parlamentarios],MATCH(N298-1,--TablaPartidos[[#All],[0]],0)),O297))","v":"Partido Popular"},8,-3.2]
[null,null,null,null,null,null,null,null,null,null,null,null,null,298,{"$f":"IF($C$16=0,\"\",IFERROR(INDEX(TablaPartidos[Grupos Parlamentarios],MATCH(N299-1,--TablaPartidos[[#All],[0]],0)),O298))","v":"Partido Popular"},20,-3.9]
[null,null,null,null,null,null,null,null,null,null,null,null,null,299,{"$f":"IF($C$16=0,\"\",IFERROR(INDEX(TablaPartidos[Grupos Parlamentarios],MATCH(N300-1,--TablaPartidos[[#All],[0]],0)),O299))","v":"Partido Popular"},18,-4.5]
[null,null,null,null,null,null,null,null,null,null,null,null,null,300,{"$f":"IF($C$16=0,\"\",IFERROR(INDEX(TablaPartidos[Grupos Parlamentarios],MATCH(N301-1,--TablaPartidos[[#All],[0]],0)),O300))","v":"Partido Popular"},16,-4.5]
[null,null,null,null,null,null,null,null,null,null,null,null,null,301,{"$f":"IF($C$16=0,\"\",IFERROR(INDEX(TablaPartidos[Grupos Parlamentarios],MATCH(N302-1,--TablaPartidos[[#All],[0]],0)),O301))","v":"Partido Popular"},14,-4.5]
[null,null,null,null,null,null,null,null,null,null,null,null,null,302,{"$f":"IF($C$16=0,\"\",IFERROR(INDEX(TablaPartidos[Grupos Parlamentarios],MATCH(N303-1,--TablaPartidos[[#All],[0]],0)),O302))","v":"Partido Popular"},12,-4.5]
[null,null,null,null,null,null,null,null,null,null,null,null,null,303,{"$f":"IF($C$16=0,\"\",IFERROR(INDEX(TablaPartidos[Grupos Parlamentarios],MATCH(N304-1,--TablaPartidos[[#All],[0]],0)),O303))","v":"Partido Popular"},10,-4.5]
[null,null,null,null,null,null,null,null,null,null,null,null,null,304,{"$f":"IF($C$16=0,\"\",IFERROR(INDEX(TablaPartidos[Grupos Parlamentarios],MATCH(N305-1,--TablaPartidos[[#All],[0]],0)),O304))","v":"Partido Popular"},8,-4.5]
[null,null,null,null,null,null,null,null,null,null,null,null,null,305,{"$f":"IF($C$16=0,\"\",IFERROR(INDEX(TablaPartidos[Grupos Parlamentarios],MATCH(N306-1,--TablaPartidos[[#All],[0]],0)),O305))","v":"Partido Popular"},20,-5.2]
[null,null,null,null,null,null,null,null,null,null,null,null,null,306,{"$f":"IF($C$16=0,\"\",IFERROR(INDEX(TablaPartidos[Grupos Parlamentarios],MATCH(N307-1,--TablaPartidos[[#All],[0]],0)),O306))","v":"Partido Popular"},18,-5.8]
[null,null,null,null,null,null,null,null,null,null,null,null,null,307,{"$f":"IF($C$16=0,\"\",IFERROR(INDEX(TablaPartidos[Grupos Parlamentarios],MATCH(N308-1,--TablaPartidos[[#All],[0]],0)),O307))","v":"Partido Popular"},16,-5.8]
[null,null,null,null,null,null,null,null,null,null,null,null,null,308,{"$f":"IF($C$16=0,\"\",IFERROR(INDEX(TablaPartidos[Grupos Parlamentarios],MATCH(N309-1,--TablaPartidos[[#All],[0]],0)),O308))","v":"Partido Popular"},14,-5.8]
[null,null,null,null,null,null,null,null,null,null,null,null,null,309,{"$f":"IF($C$16=0,\"\",IFERROR(INDEX(TablaPartidos[Grupos Parlamentarios],MATCH(N310-1,--TablaPartidos[[#All],[0]],0)),O309))","v":"Partido Popular"},12,-5.8]
[null,null,null,null,null,null,null,null,null,null,null,null,null,310,{"$f":"IF($C$16=0,\"\",IFERROR(INDEX(TablaPartidos[Grupos Parlamentarios],MATCH(N311-1,--TablaPartidos[[#All],[0]],0)),O310))","v":"Partido Popular"},10,-5.8]
[null,null,null,null,null,null,null,null,null,null,null,null,null,311,{"$f":"IF($C$16=0,\"\",IFERROR(INDEX(TablaPartidos[Grupos Parlamentarios],MATCH(N312-1,--TablaPartidos[[#All],[0]],0)),O311))","v":"Partido Popular"},8,-5.8]
[null,null,null,null,null,null,null,null,null,null,null,null,null,312,{"$f":"IF($C$16=0,\"\",IFERROR(INDEX(TablaPartidos[Grupos Parlamentarios],MATCH(N313-1,--TablaPartidos[[#All],[0]],0)),O312))","v":"Partido Popular"},20,-6.5]
[null,null,null,null,null,null,null,null,null,null,null,null,null,313,{"$f":"IF($C$16=0,\"\",IFERROR(INDEX(TablaPartidos[Grupos Parlamentarios],MATCH(N314-1,--TablaPartidos[[#All],[0]],0)),O313))","v":"Partido Popular"},18,-7.1]
[null,null,null,null,null,null,null,null,null,null,null,null,null,314,{"$f":"IF($C$16=0,\"\",IFERROR(INDEX(TablaPartidos[Grupos Parlamentarios],MATCH(N315-1,--TablaPartidos[[#All],[0]],0)),O314))","v":"Partido Popular"},16,-7.1]
[null,null,null,null,null,null,null,null,null,null,null,null,null,315,{"$f":"IF($C$16=0,\"\",IFERROR(INDEX(TablaPartidos[Grupos Parlamentarios],MATCH(N316-1,--TablaPartidos[[#All],[0]],0)),O315))","v":"Partido Popular"},14,-7.1]
[null,null,null,null,null,null,null,null,null,null,null,null,null,316,{"$f":"IF($C$16=0,\"\",IFERROR(INDEX(TablaPartidos[Grupos Parlamentarios],MATCH(N317-1,--TablaPartidos[[#All],[0]],0)),O316))","v":"Partido Popular"},12,-7.1]
[null,null,null,null,null,null,null,null,null,null,null,null,null,317,{"$f":"IF($C$16=0,\"\",IFERROR(INDEX(TablaPartidos[Grupos Parlamentarios],MATCH(N318-1,--TablaPartidos[[#All],[0]],0)),O317))","v":"Partido Popular"},10,-7.1]
[null,null,null,null,null,null,null,null,null,null,null,null,null,318,{"$f":"IF($C$16=0,\"\",IFERROR(INDEX(TablaPartidos[Grupos Parlamentarios],MATCH(N319-1,--TablaPartidos[[#All],[0]],0)),O318))","v":"Partido Popular"},8,-7.1]
[null,null,null,null,null,null,null,null,null,null,null,null,null,319,{"$f":"IF($C$16=0,\"\",IFERROR(INDEX(TablaPartidos[Grupos Parlamentarios],MATCH(N320-1,--TablaPartidos[[#All],[0]],0)),O319))","v":"Partido Popular"},20,-7.8]
[null,null,null,null,null,null,null,null,null,null,null,null,null,320,{"$f":"IF($C$16=0,\"\",IFERROR(INDEX(TablaPartidos[Grupos Parlamentarios],MATCH(N321-1,--TablaPartidos[[#All],[0]],0)),O320))","v":"Partido Popular"},18,-8.5]
[null,null,null,null,null,null,null,null,null,null,null,null,null,321,{"$f":"IF($C$16=0,\"\",IFERROR(INDEX(TablaPartidos[Grupos Parlamentarios],MATCH(N322-1,--TablaPartidos[[#All],[0]],0)),O321))","v":"Partido Popular"},16,-8.5]
[null,null,null,null,null,null,null,null,null,null,null,null,null,322,{"$f":"IF($C$16=0,\"\",IFERROR(INDEX(TablaPartidos[Grupos Parlamentarios],MATCH(N323-1,--TablaPartidos[[#All],[0]],0)),O322))","v":"Partido Popular"},14,-8.5]
[null,null,null,null,null,null,null,null,null,null,null,null,null,323,{"$f":"IF($C$16=0,\"\",IFERROR(INDEX(TablaPartidos[Grupos Parlamentarios],MATCH(N324-1,--TablaPartidos[[#All],[0]],0)),O323))","v":"Partido Popular"},12,-8.5]
[null,null,null,null,null,null,null,null,null,null,null,null,null,324,{"$f":"IF($C$16=0,\"\",IFERROR(INDEX(TablaPartidos[Grupos Parlamentarios],MATCH(N325-1,--TablaPartidos[[#All],[0]],0)),O324))","v":"Partido Popular"},10,-8.5]
[null,null,null,null,null,null,null,null,null,null,null,null,null,325,{"$f":"IF($C$16=0,\"\",IFERROR(INDEX(TablaPartidos[Grupos Parlamentarios],MATCH(N326-1,--TablaPartidos[[#All],[0]],0)),O325))","v":"Partido Popular"},8,-8.5]
[null,null,null,null,null,null,null,null,null,null,null,null,null,326,{"$f":"IF($C$16=0,\"\",IFERROR(INDEX(TablaPartidos[Grupos Parlamentarios],MATCH(N327-1,--TablaPartidos[[#All],[0]],0)),O326))","v":"Partido Popular"},20,-9.1]
[null,null,null,null,null,null,null,null,null,null,null,null,null,327,{"$f":"IF($C$16=0,\"\",IFERROR(INDEX(TablaPartidos[Grupos Parlamentarios],MATCH(N328-1,--TablaPartidos[[#All],[0]],0)),O327))","v":"Partido Popular"},14,-9.8000000000000007]
[null,null,null,null,null,null,null,null,null,null,null,null,null,328,{"$f":"IF($C$16=0,\"\",IFERROR(INDEX(TablaPartidos[Grupos Parlamentarios],MATCH(N329-1,--TablaPartidos[[#All],[0]],0)),O328))","v":"Partido Popular"},12,-9.8000000000000007]
[null,null,null,null,null,null,null,null,null,null,null,null,null,329,{"$f":"IF($C$16=0,\"\",IFERROR(INDEX(TablaPartidos[Grupos Parlamentarios],MATCH(N330-1,--TablaPartidos[[#All],[0]],0)),O329))","v":"Partido Popular"},10,-9.8000000000000007]
[null,null,null,null,null,null,null,null,null,null,null,null,null,330,{"$f":"IF($C$16=0,\"\",IFERROR(INDEX(TablaPartidos[Grupos Parlamentarios],MATCH(N331-1,--TablaPartidos[[#All],[0]],0)),O330))","v":"Partido Popular"},8,-9.8000000000000007]
[null,null,null,null,null,null,null,null,null,null,null,null,null,331,{"$f":"IF($C$16=0,\"\",IFERROR(INDEX(TablaPartidos[Grupos Parlamentarios],MATCH(N332-1,--TablaPartidos[[#All],[0]],0)),O331))","v":"Partido Popular"},20,-12.2]
[null,null,null,null,null,null,null,null,null,null,null,null,null,332,{"$f":"IF($C$16=0,\"\",IFERROR(INDEX(TablaPartidos[Grupos Parlamentarios],MATCH(N333-1,--TablaPartidos[[#All],[0]],0)),O332))","v":"Partido Popular"},18,-12.2]
[null,null,null,null,null,null,null,null,null,null,null,null,null,333,{"$f":"IF($C$16=0,\"\",IFERROR(INDEX(TablaPartidos[Grupos Parlamentarios],MATCH(N334-1,--TablaPartidos[[#All],[0]],0)),O333))","v":"Partido Popular"},16,-12.2]
[null,null,null,null,null,null,null,null,null,null,null,null,null,334,{"$f":"IF($C$16=0,\"\",IFERROR(INDEX(TablaPartidos[Grupos Parlamentarios],MATCH(N335-1,--TablaPartidos[[#All],[0]],0)),O334))","v":"Partido Popular"},20,-13.5]
[null,null,null,null,null,null,null,null,null,null,null,null,null,335,{"$f":"IF($C$16=0,\"\",IFERROR(INDEX(TablaPartidos[Grupos Parlamentarios],MATCH(N336-1,--TablaPartidos[[#All],[0]],0)),O335))","v":"Partido Popular"},18,-13.5]
[null,null,null,null,null,null,null,null,null,null,null,null,null,336,{"$f":"IF($C$16=0,\"\",IFERROR(INDEX(TablaPartidos[Grupos Parlamentarios],MATCH(N337-1,--TablaPartidos[[#All],[0]],0)),O336))","v":"Partido Popular"},16,-13.5]
[null,null,null,null,null,null,null,null,null,null,null,null,null,337,{"$f":"IF($C$16=0,\"\",IFERROR(INDEX(TablaPartidos[Grupos Parlamentarios],MATCH(N338-1,--TablaPartidos[[#All],[0]],0)),O337))","v":"Partido Popular"},20,-14.8]
[null,null,null,null,null,null,null,null,null,null,null,null,null,338,{"$f":"IF($C$16=0,\"\",IFERROR(INDEX(TablaPartidos[Grupos Parlamentarios],MATCH(N339-1,--TablaPartidos[[#All],[0]],0)),O338))","v":"Partido Popular"},18,-14.8]
[null,null,null,null,null,null,null,null,null,null,null,null,null,339,{"$f":"IF($C$16=0,\"\",IFERROR(INDEX(TablaPartidos[Grupos Parlamentarios],MATCH(N340-1,--TablaPartidos[[#All],[0]],0)),O339))","v":"Partido Popular"},20,-16.100000000000001]
[null,null,null,null,null,null,null,null,null,null,null,null,null,340,{"$f":"IF($C$16=0,\"\",IFERROR(INDEX(TablaPartidos[Grupos Parlamentarios],MATCH(N341-1,--TablaPartidos[[#All],[0]],0)),O340))","v":"Partido Popular"},18,-16.100000000000001]
[null,null,null,null,null,null,null,null,null,null,null,null,null,341,{"$f":"IF($C$16=0,\"\",IFERROR(INDEX(TablaPartidos[Grupos Parlamentarios],MATCH(N342-1,--TablaPartidos[[#All],[0]],0)),O341))","v":"Partido Popular"},16,-16.100000000000001]
[null,null,null,null,null,null,null,null,null,null,null,null,null,342,{"$f":"IF($C$16=0,\"\",IFERROR(INDEX(TablaPartidos[Grupos Parlamentarios],MATCH(N343-1,--TablaPartidos[[#All],[0]],0)),O342))","v":"Partido Popular"},20,-17.399999999999999]
[null,null,null,null,null,null,null,null,null,null,null,null,null,343,{"$f":"IF($C$16=0,\"\",IFERROR(INDEX(TablaPartidos[Grupos Parlamentarios],MATCH(N344-1,--TablaPartidos[[#All],[0]],0)),O343))","v":"Partido Popular"},18,-17.399999999999999]
[null,null,null,null,null,null,null,null,null,null,null,null,null,344,{"$f":"IF($C$16=0,\"\",IFERROR(INDEX(TablaPartidos[Grupos Parlamentarios],MATCH(N345-1,--TablaPartidos[[#All],[0]],0)),O344))","v":"Partido Popular"},16,-17.399999999999999]
[null,null,null,null,null,null,null,null,null,null,null,null,null,345,{"$f":"IF($C$16=0,\"\",IFERROR(INDEX(TablaPartidos[Grupos Parlamentarios],MATCH(N346-1,--TablaPartidos[[#All],[0]],0)),O345))","v":"Partido Popular"},20,-18.7]
[null,null,null,null,null,null,null,null,null,null,null,null,null,346,{"$f":"IF($C$16=0,\"\",IFERROR(INDEX(TablaPartidos[Grupos Parlamentarios],MATCH(N347-1,--TablaPartidos[[#All],[0]],0)),O346))","v":"Partido Popular"},18,-18.7]
[null,null,null,null,null,null,null,null,null,null,null,null,null,347,{"$f":"IF($C$16=0,\"\",IFERROR(INDEX(TablaPartidos[Grupos Parlamentarios],MATCH(N348-1,--TablaPartidos[[#All],[0]],0)),O347))","v":"Partido Popular"},16,-18.7]
[null,null,null,null,null,null,null,null,null,null,null,null,null,348,{"$f":"IF($C$16=0,\"\",IFERROR(INDEX(TablaPartidos[Grupos Parlamentarios],MATCH(N349-1,--TablaPartidos[[#All],[0]],0)),O348))","v":"Partido Popular"},20,-20]
[null,null,null,null,null,null,null,null,null,null,null,null,null,349,{"$f":"IF($C$16=0,\"\",IFERROR(INDEX(TablaPartidos[Grupos Parlamentarios],MATCH(N350-1,--TablaPartidos[[#All],[0]],0)),O349))","v":"Partido Popular"},18,-20]
[null,null,null,null,null,null,null,null,null,null,null,null,null,350,{"$f":"IF($C$16=0,\"\",IFERROR(INDEX(TablaPartidos[Grupos Parlamentarios],MATCH(N351-1,--TablaPartidos[[#All],[0]],0)),O350))","v":"Partido Popular"},16,-20]
[null,null,null,null,null,null,null,null,null,null,null,null,null,351,{"$f":"B28","v":"PSOE"},0,-18.600000000000001]
[null,null,null,null,null,null,null,null,null,null,null,null,null,352,"Partido Popular",-4,-19.600000000000001]
[null,null,null,null,null,null,null,null,null,null,null,null,null,353,"Partido Popular",-2,-19.600000000000001]
[null,null,null,null,null,null,null,null,null,null,null,null,null,354,"PSOE",2,-19.600000000000001]
[null,null,null,null,null,null,null,null,null,null,null,null,null,355,"SUMAR",4,-19.600000000000001]
[null,null,null,null,null,null,null,null,null,null,null,null,null,356,"Partido Popular",-6,-17.600000000000001]
[null,null,null,null,null,null,null,null,null,null,null,null,null,357,"PSOE",-4,-17.600000000000001]
[null,null,null,null,null,null,null,null,null,null,null,null,null,358,"SUMAR",4,-17.600000000000001]
[null,null,null,null,null,null,null,null,null,null,null,null,null,359,"Partido Popular",6,-17.600000000000001]
[null,null,null,null,null,null,null,null,null,null,null,null,null,360,"PSOE",-6,-9.8000000000000007]
[null,null,null,null,null,null,null,null,null,null,null,null,null,361,"",-6,-8.5]
[null,null,null,null,null,null,null,null,null,null,null,null,null,362,"",-6,-7.2]
[null,null,null,null,null,null,null,null,null,null,null,null,null,363,"",-6,-5.9]
[null,null,null,null,null,null,null,null,null,null,null,null,null,364,"PSOE",-6,-4.5999999999999996]
[null,null,null,null,null,null,null,null,null,null,null,null,null,365,"",-6,-3.3]
[null,null,null,null,null,null,null,null,null,null,null,null,null,366,"",-6,-2]
[null,null,null,null,null,null,null,null,null,null,null,null,null,367,"",-5.5,-0.9]
[null,null,null,null,null,null,null,null,null,null,null,null,null,368,"",-4.8,0]
[null,null,null,null,null,null,null,null,null,null,null,null,null,369,"PSOE",-2.5,1.2]
[null,null,null,null,null,null,null,null,null,null,null,null,null,370,"",-1.3,1.5]
[null,null,null,null,null,null,null,null,null,null,null,null,null,371,"",0,1.6]
[null,null,null,null,null,null,null,null,null,null,null,null,null,372,"",1.3,1.5]
[null,null,null,null,null,null,null,null,null,null,null,null,null,373,"",2.5,1.2]
[null,null,null,null,null,null,null,null,null,null,null,null,null,374,"",4.8,0]
[null,null,null,null,null,null,null,null,null,null,null,null,null,375,"",5.5,-0.9]
[null,null,null,null,null,null,null,null,null,null,null,null,null,376,"",6,-2]
[null,null,null,null,null,null,null,null,null,null,null,null,null,377,"",6,-3.3]
[null,null,null,null,null,null,null,null,null,null,null,null,null,378,"",6,-4.5999999999999996]
[null,null,null,null,null,null,null,null,null,null,null,null,null,379,"",6,-5.9]
[null,null,null,null,null,null,null,null,null,null,null,null,null,380,"",6,-7.2]
[null,null,null,null,null,null,null,null,null,null,null,null,null,381,"",6,-8.5]
[null,null,null,null,null,null,null,null,null,null,null,null,null,382,"",6,-9.8000000000000007]